{"text_format":"1","workbook":"xlsx","n_sheets":2,"sheets":["RawData","ZoneSums"],"not_rendered":{"charts":0,"images":0,"macros":1,"external_links":0,"defined_names":1,"comments":2,"pivot_tables":0},"unopened":[],"bounds":{"document_bytes":16777216,"sheet_cells":100000,"rows_first":2000,"rows_last":500,"rows_between":2000,"halvings":0,"cell_chars":16384,"cell_head_chars":4096},"cells_cut":0,"cells_raw":0,"read":"whole","date_system":"1900"}

{"sheet":"RawData","index":0,"n_rows":144,"n_cols":44,"rows_kept":144,"cut":false,"hidden":false,"merged":[]}
["Sort Key ","Zone (-->)","00 AzSonora Desert Museum","01 Organ Pipe","01 Organ Pipe","01 Organ Pipe","01 Organ Pipe","01 Organ Pipe","01 Organ Pipe","01 Organ Pipe","01 Organ Pipe","01 Organ Pipe","01 Organ Pipe","02 Arivaca","03 Patagonia-Sonoita","04 Tubac","04 Tubac","04 Tubac","04 Tubac","03 Patagonia-Sonoita","03 Patagonia-Sonoita","03 Patagonia-Sonoita","03 Patagonia-Sonoita","03 Patagonia-Sonoita","05 Huachuca Highlands","05 Huachuca Highlands","05 Huachuca Highlands","05 Huachuca Highlands","06 Ramsey Canyon","06 Ramsey Canyon","09 Chiricahua Highlands","08 Cave Creek Canyon","08 Cave Creek Canyon","07 Portal","07 Portal","09 Chiricahua Highlands","09 Chiricahua Highlands","09 Chiricahua Highlands","11 Chiricahua NM","12 Amerind Inst.","10 Kartchner Caverns","10 Kartchner Caverns"]
[null,"Location (-->)","Museum","Campground","Campground","Campground","Alamo Canyon","Quitobaquito","Road from Q to HQ","Campground","Alamo Canyon","Ajo Highway","Ajo Highway","Cienega","Campground","Santa Gertrudis Lane","Ron Morriss Park","De Anza Trail","Tumacacori Mission","Campground","Campground","Campground","Roadside Rest","Patons","Reef Campground","Campground","Campground","Hike to Comfort Spring","Canyon Hike including Tufted Flycatcher","Just around the Nature Conservancy Center","Campground","SWRS (research station)","South Fork","Store","Yard","Campground","Campground","Campground","Vis Ctr and hike",null,"Campground","Campground"]
["Date and Time of List",null,"2018-05-19T14:34:00","2018-05-20T04:43:00","2018-05-20T06:07:00","2018-05-20T07:47:00","2018-05-20T09:17:00","2018-05-20T16:58:00","2018-05-20T17:34:00","2018-05-20T20:11:00","2018-05-21T05:18:00","2018-05-21T11:03:00","2018-05-21T12:00:00","2018-05-21T12:52:00","2018-05-22T05:34:00","2018-05-22T06:45:00","2018-05-22T09:44:00","2018-05-22T09:59:00","2018-05-22T12:24:00","2018-05-22T15:01:00","2018-05-22T17:21:00","2018-05-23T05:47:00","2018-05-23T08:55:00","2018-05-23T10:13:00","2018-05-23T18:07:00","2018-05-23T19:39:00","2018-05-24T04:35:00","2018-05-24T09:00:00","2018-05-24T11:00:00","2018-05-24","2018-05-25T06:57:00","2018-05-25T10:26:00","2018-05-25T11:11:00","2018-05-25T13:23:00","2018-05-25T15:10:00","2018-05-25T16:59:00","2018-05-26T00:03:00","2018-05-26T04:04:00","2018-05-26T09:26:00","2018-05-26T12:11:00","2018-05-26T17:36:00","2018-05-27T04:33:00","Grand Total Individuals","Corrected Species Total"]
["Submission ID",null,"S46217602","S45852090","S45856547","S45856511","S46218000","S45877209","S45879149","S46221110","S46217761","S45897044","S46218290","S46218428","S45931888","S46120686","S45928506","S46120683","S45932863","S45941257","S45942015","S45954995","S45956941","S45958892","S46220239","S46220820","S46238033","S46246927","S46243708","none","S46016182","S46016209","S46016125","S46241728","S46238889","S46243469","S46239233","S46239421","S46042238","S46051301","S46055155","S46064116"]
["Link to eBird (-->)","Species (below)","https://ebird.org/view/checklist/S46217602","https://ebird.org/view/checklist/S45852090","https://ebird.org/view/checklist/S45856547","https://ebird.org/view/checklist/S45856511","https://ebird.org/view/checklist/S46218000","https://ebird.org/view/checklist/S45877209","https://ebird.org/view/checklist/S45879149","https://ebird.org/view/checklist/S46221110","https://ebird.org/view/checklist/S46217761","https://ebird.org/view/checklist/S45897044","https://ebird.org/view/checklist/S46218290","https://ebird.org/view/checklist/S46218428","https://ebird.org/view/checklist/S45931888","https://ebird.org/view/checklist/S46120686","https://ebird.org/view/checklist/S45928506","https://ebird.org/view/checklist/S46120683","https://ebird.org/view/checklist/S45932863","https://ebird.org/view/checklist/S45941257","https://ebird.org/view/checklist/S45942015","https://ebird.org/view/checklist/S45954995","https://ebird.org/view/checklist/S45956941","https://ebird.org/view/checklist/S45958892","https://ebird.org/view/checklist/S46220239","https://ebird.org/view/checklist/S46220820","https://ebird.org/view/checklist/S46238033","https://ebird.org/view/checklist/S46246927","https://ebird.org/view/checklist/S46243708","none","https://ebird.org/view/checklist/S46016182","https://ebird.org/view/checklist/S46016209","https://ebird.org/view/checklist/S46016125","https://ebird.org/view/checklist/S46241728","https://ebird.org/view/checklist/S46238889","https://ebird.org/view/checklist/S46243469","https://ebird.org/view/checklist/S46239233","https://ebird.org/view/checklist/S46239421","https://ebird.org/view/checklist/S46042238","https://ebird.org/view/checklist/S46051301","https://ebird.org/view/checklist/S46055155","https://ebird.org/view/checklist/S46064116"]
[396,"Mallard",null,null,null,null,null,null,null,null,null,null,null,null,null,null,null,null,null,null,7,null,null,null,null,null,null,null,null,null,null,null,null,null,null,null,null,null,null,null,null,null,7,0]
[397,"Mallard (Northern)",null,null,null,null,null,null,null,null,null,null,null,null,null,null,null,null,null,1,null,null,null,null,null,null,null,null,null,null,null,null,null,null,null,null,null,null,null,null,null,null,1,1]
[401,"Mallard (Mexican intergrade)",null,null,null,null,null,null,null,null,null,null,null,null,null,null,null,null,null,1,null,2,null,null,null,null,null,null,null,null,null,null,null,null,null,null,null,null,null,null,null,null,3,1]
[567,"Ruddy Duck",null,null,null,null,null,null,null,null,null,null,null,null,null,null,null,null,null,1,null,null,null,null,null,null,null,null,null,null,null,null,null,null,null,null,null,null,null,null,null,null,1,1]
[796,"Gambel's Quail",null,null,null,null,null,null,null,null,0,null,null,null,null,null,null,null,null,null,null,null,null,2,null,null,null,null,null,null,null,null,null,null,null,null,null,null,null,null,null,null,2,1]
[1553,"Wild Turkey",null,null,null,null,null,null,null,null,null,null,null,null,null,null,null,null,null,null,null,null,null,null,null,null,null,null,1,null,1,null,null,null,null,null,null,1,null,null,null,null,3,1]
[1985,"Neotropic Cormorant",null,null,null,null,null,null,null,null,null,null,null,null,null,null,null,null,null,12,null,null,null,null,null,null,null,null,null,null,null,null,null,null,null,null,null,null,null,null,null,null,12,1]
[1988,"Double-crested Cormorant",null,null,null,null,null,null,null,null,null,null,null,null,null,null,null,null,null,1,null,null,null,null,null,null,null,null,null,null,null,null,null,null,null,null,null,null,null,null,null,null,1,1]
[2118,"Great Blue Heron",null,null,null,null,null,null,null,null,null,null,null,null,null,null,null,null,null,1,null,null,null,null,null,null,null,null,null,null,null,null,null,null,null,null,null,null,null,null,null,null,1,1]
[2233,"Black-crowned Night-Heron",null,null,null,null,null,null,null,null,null,null,null,null,1,null,null,null,null,null,null,null,null,null,null,null,null,null,null,null,null,null,null,null,null,null,null,null,null,null,null,null,1,1]
[2270,"White-faced Ibis",null,null,null,null,null,null,null,null,null,null,null,null,null,null,null,null,null,5,null,null,null,null,null,null,null,null,null,null,null,null,null,null,null,null,null,null,null,null,null,null,5,1]
[2358,"Black Vulture",null,null,null,null,1,null,null,null,null,null,null,null,1,2,null,null,null,null,null,null,null,null,null,null,null,null,null,null,null,null,null,null,null,null,null,null,null,null,null,null,3,1]
[2362,"Turkey Vulture",null,null,null,2,2,null,2,null,null,null,null,null,6,1,null,1,null,null,null,6,2,null,null,null,null,null,null,null,null,null,1,null,null,null,null,null,1,null,null,null,24,1]
[2821,"Cooper's Hawk",null,null,null,null,null,null,null,null,null,null,null,null,null,1,null,1,null,null,null,null,null,null,null,null,null,null,null,null,null,null,null,null,null,null,null,null,null,null,null,null,2,1]
[2958.2,"Gray Hawk",null,null,null,null,null,null,null,null,null,null,null,null,null,1,null,1,null,null,null,null,null,null,null,null,null,null,null,null,null,null,null,null,null,null,null,null,null,null,null,null,2,1]
[2984,"Swainson's Hawk",null,null,null,null,null,null,null,null,null,null,null,null,null,null,1,null,null,null,null,null,null,null,null,null,null,null,null,null,null,null,null,null,null,null,null,null,null,null,null,null,1,1]
[2989,"Red-tailed Hawk",null,null,null,null,4,null,null,null,1,null,null,null,null,null,null,null,null,null,null,null,null,null,null,null,null,null,null,null,null,null,null,null,null,null,null,null,null,null,null,null,5,1]
[3614.5,"American Coot",null,null,null,null,null,8,null,null,null,null,null,null,1,null,null,null,null,25,null,null,null,null,null,null,null,null,null,null,null,null,null,null,null,null,null,null,null,null,null,null,34,1]
[4139.0200000000004,"Spotted Sandpiper",null,null,null,null,null,1,null,null,null,null,null,null,null,null,null,null,null,null,null,null,null,null,null,null,null,null,null,null,null,null,null,null,null,null,null,null,null,null,null,null,1,1]
[4508,"Forster's Tern",null,null,null,null,null,null,null,null,null,null,null,null,null,null,null,null,null,1,null,null,null,null,null,null,null,null,null,null,null,null,null,null,null,null,null,null,null,null,null,null,1,1]
[4828,"Eurasian Collared-Dove",null,null,null,null,null,null,null,null,null,null,null,null,null,null,null,2,null,null,null,null,null,null,null,null,null,null,null,null,null,null,null,null,null,null,null,null,null,null,null,null,2,1]
[4990.0150000000003,"Inca Dove",null,null,null,null,null,null,null,null,null,null,null,null,null,null,null,null,null,null,null,null,null,null,null,null,null,null,null,null,null,null,null,null,4,null,null,null,null,null,null,null,4,1]
[4990.0200000000004,"Common Ground-Dove",null,null,null,null,null,null,null,null,null,null,null,null,null,2,null,1,null,null,null,null,null,null,null,null,null,null,null,null,null,null,null,null,null,null,null,null,null,null,null,null,3,1]
[4992,"White-winged Dove",3,null,1,1,3,25,8,null,3,null,null,null,4,3,null,3,null,null,6,6,null,6,null,null,null,null,null,null,null,null,null,null,1,null,null,null,null,null,1,1,72,1]
[5015,"Mourning Dove",null,null,null,null,null,null,null,null,null,null,null,null,null,1,null,1,null,null,null,null,null,null,null,null,null,null,null,null,null,null,null,null,null,null,null,null,null,null,null,null,2,1]
[7254,"Great Horned Owl",null,null,null,null,null,null,null,null,null,null,null,null,null,null,null,null,null,null,null,null,null,null,null,null,null,null,null,null,null,null,null,null,null,null,1,null,null,null,null,null,1,1]
[7350,"Northern Pygmy-Owl (Mountain)",null,null,null,null,null,null,null,null,null,null,null,null,null,null,null,null,null,null,null,null,null,null,null,1,1,null,null,null,null,null,null,null,null,null,null,null,null,null,null,null,2,1]
[7424,"Elf Owl",null,null,null,null,null,null,null,null,null,null,null,null,null,null,null,null,null,null,null,null,null,null,null,1,1,null,null,null,null,null,null,null,null,null,null,null,null,null,null,null,2,1]
[7767,"Lesser Nighthawk",null,null,null,null,null,null,null,null,null,null,null,null,null,null,null,null,null,null,null,null,null,null,null,null,null,null,null,null,null,null,null,null,null,null,null,null,null,null,null,1,1,1]
[7862,"Common Poorwill",null,1,null,null,null,null,null,2,null,null,null,null,null,null,null,null,null,null,null,null,null,null,null,2,1,null,null,null,null,null,null,null,null,null,null,null,null,null,null,1,7,1]
[7913,"Mexican Whip-poor-will",null,null,null,null,null,null,null,null,null,null,null,null,null,null,null,null,null,null,null,null,null,null,null,null,null,null,null,null,null,null,null,null,null,null,null,2,null,null,null,null,2,1]
[8345,"White-throated Swift",null,null,null,null,null,null,null,null,null,null,null,null,null,null,null,null,null,null,null,null,2,null,null,null,null,null,1,null,null,null,null,null,null,null,null,null,null,null,null,null,3,1]
[8816,"Rivoli's Hummingbird",null,null,null,null,null,null,null,null,null,null,null,null,null,null,null,null,null,null,null,null,null,null,null,null,null,null,null,null,1,3,null,null,null,null,null,null,null,null,null,null,4,1]
[8840,"Blue-throated Hummingbird",null,null,null,null,null,null,null,null,null,null,null,null,null,null,null,null,null,null,null,null,null,null,null,null,null,null,null,null,null,5,null,null,2,null,null,null,null,null,null,null,7,1]
[8898,"Black-chinned Hummingbird",null,null,null,null,null,null,null,null,null,null,null,null,null,null,null,null,null,null,null,null,null,2,null,null,null,null,null,null,1,3,null,2,null,null,null,null,null,null,null,null,8,1]
[8914,"Costa's Hummingbird",null,null,null,null,null,null,null,null,1,null,null,null,null,null,null,null,null,null,null,null,null,null,null,null,null,null,null,null,null,null,null,null,null,null,null,null,null,null,null,null,1,1]
[8922,"Broad-tailed Hummingbird",null,null,null,null,null,null,null,null,null,null,null,null,null,null,null,null,null,null,null,null,null,null,null,null,null,null,null,null,8,null,null,null,null,null,null,null,null,null,null,null,8,1]
[8992,"Broad-billed Hummingbird",null,null,null,null,null,null,null,null,null,null,null,null,null,null,null,1,2,2,null,3,null,3,null,null,null,null,null,null,null,null,null,1,2,null,null,null,null,null,null,null,14,1]
[8994,"Broad-billed Hummingbird (Northern)",null,null,null,null,null,null,null,null,null,null,null,null,null,1,null,null,null,null,null,null,null,null,null,null,null,null,null,null,null,null,null,null,null,null,null,null,null,null,null,null,1,0]
[9158,"Berylline Hummingbird",null,null,null,null,null,null,null,null,null,null,null,null,null,null,null,null,null,null,null,null,1,null,null,null,null,null,null,null,null,null,null,null,null,null,null,null,null,null,null,null,1,1]
[9194,"Violet-crowned Hummingbird",null,null,null,null,null,null,null,null,null,null,null,null,null,null,null,null,null,null,null,null,null,2,null,null,null,null,null,null,null,null,null,null,null,null,null,null,null,null,null,null,2,1]
[9298,"hummingbird sp.",null,null,null,null,null,null,null,null,null,null,null,null,null,null,null,null,null,null,null,null,1,null,null,null,null,null,null,null,null,null,null,null,null,null,null,null,null,null,null,null,1,0]
[9402,"Elegant Trogon",null,null,null,null,null,null,null,null,null,null,null,null,null,null,null,null,null,null,null,null,null,null,null,null,null,null,1,null,null,null,1,null,null,null,null,null,null,null,null,null,2,1]
[10874,"Acorn Woodpecker",null,null,null,null,null,null,null,null,null,null,null,null,null,null,null,null,null,null,null,null,null,null,null,null,1,null,null,null,null,4,1,null,null,null,null,null,1,null,null,null,7,1]
[10904,"Gila Woodpecker",null,null,1,2,null,null,12,null,1,null,null,null,null,2,null,3,null,null,null,null,null,1,null,null,null,null,null,null,null,null,null,null,null,null,null,null,null,null,null,null,21,1]
[11137,"Ladder-backed Woodpecker",null,null,null,null,null,null,null,null,null,null,null,null,null,1,null,1,null,null,null,null,null,1,null,null,null,null,null,null,null,null,null,null,null,null,null,null,null,null,null,null,3,1]
[11164,"Hairy Woodpecker",null,null,null,null,null,null,null,null,null,null,null,null,null,null,null,null,null,null,null,null,null,null,null,null,null,null,null,null,1,null,null,null,null,null,null,null,null,null,null,null,1,1]
[11180,"Arizona Woodpecker",null,null,null,null,null,null,null,null,null,null,null,null,null,null,null,null,null,null,null,null,null,null,1,null,null,null,null,null,null,null,1,null,null,null,null,null,1,null,null,null,3,1]
[11308,"Northern Flicker",null,null,null,null,null,null,null,null,null,null,null,null,null,null,null,null,null,null,null,null,null,null,null,null,null,null,null,null,1,null,null,null,null,null,null,null,null,null,null,null,1,1]
[11581.24,"Crested Caracara",null,null,null,null,null,null,null,null,null,1,1,null,null,null,null,null,null,null,null,null,null,null,null,null,null,null,null,null,null,null,null,null,null,null,null,null,null,null,null,null,2,1]
[13804,"Northern Beardless-Tyrannulet",null,null,null,null,null,null,null,null,null,null,null,null,null,2,null,null,null,null,null,null,null,null,null,null,null,null,null,null,null,null,null,null,null,null,null,null,null,null,null,1,3,1]
[14509,"Tufted Flycatcher",null,null,null,null,null,null,null,null,null,null,null,null,null,null,null,null,null,null,null,null,null,null,null,null,null,null,2,null,null,null,null,null,null,null,null,null,null,null,null,null,2,1]
[14517,"Greater Pewee",null,null,null,null,null,null,null,null,null,null,null,null,null,null,null,null,null,null,null,null,null,null,null,null,0,1,null,null,null,null,null,null,null,null,null,1,null,null,null,null,2,1]
[14529,"Western Wood-Pewee",null,null,null,null,null,null,null,null,null,null,null,null,null,2,null,1,null,null,null,null,null,null,null,null,1,1,1,null,1,1,null,null,null,1,null,null,null,null,1,null,10,1]
[14604,"Cordilleran Flycatcher",null,null,null,null,null,null,null,null,null,null,null,null,null,null,null,null,null,null,null,null,null,null,null,null,null,null,1,null,1,null,null,null,null,null,null,5,null,null,null,null,7,1]
[14607,"Pacific-slope/Cordilleran Flycatcher (Western Flycatcher)",null,null,null,null,1,null,null,null,null,null,null,null,null,null,null,null,null,null,null,null,null,null,null,null,null,null,null,null,null,null,null,null,null,null,null,null,null,null,null,null,1,0]
[14612,"Buff-breasted Flycatcher",null,null,null,null,null,null,null,null,null,null,null,null,null,null,null,null,null,null,null,null,null,null,1,null,5,null,null,null,null,null,null,null,null,null,null,null,null,null,null,null,6,1]
[14621,"Black Phoebe",null,null,null,null,null,null,null,null,null,null,null,null,null,null,null,null,null,1,null,null,null,null,null,null,null,null,null,null,null,null,null,null,null,null,null,null,null,null,null,null,1,1]
[14633,"Say's Phoebe",null,null,null,null,null,null,null,null,null,null,null,null,null,null,null,null,null,null,null,null,null,null,null,null,null,null,null,null,null,1,null,null,null,null,null,null,null,null,null,null,1,1]
[14637,"Vermilion Flycatcher",null,null,null,null,null,null,null,null,null,null,null,2,1,1,1,3,null,null,null,2,null,null,null,null,null,null,null,null,null,null,null,null,null,null,null,null,null,1,null,2,13,1]
[14887,"Dusky-capped Flycatcher",null,null,null,null,null,null,null,null,null,null,null,null,null,3,null,2,null,null,null,null,1,null,null,1,1,null,null,null,null,null,2,null,null,null,null,null,1,null,null,null,11,1]
[14921,"Ash-throated Flycatcher",null,1,null,null,1,null,null,null,1,null,null,2,null,1,null,null,null,null,null,null,null,1,null,null,null,null,null,null,null,null,null,null,null,null,null,null,null,1,null,1,8,1]
[14929,"Brown-crested Flycatcher",null,null,null,null,2,null,null,null,null,null,null,null,null,3,null,null,null,null,null,null,1,null,null,null,null,null,null,null,null,null,null,null,null,null,null,null,null,null,null,null,6,1]
[14930,"Brown-crested Flycatcher (Arizona)",null,null,null,null,null,null,null,null,null,null,null,null,null,null,null,4,null,null,null,null,null,null,null,null,null,null,null,null,null,null,null,null,null,null,null,null,null,null,null,null,4,0]
[15038,"Tropical Kingbird",null,null,null,null,null,null,null,null,null,null,null,null,null,null,2,null,null,null,null,null,null,null,null,null,null,null,null,null,null,null,null,null,null,null,null,null,null,null,null,null,2,1]
[15045,"Cassin's Kingbird",null,null,null,null,null,null,null,null,null,null,null,null,null,1,null,1,null,null,null,null,null,null,null,null,null,null,null,null,null,null,null,2,null,null,null,null,null,null,null,null,4,1]
[15048,"Thick-billed Kingbird",null,null,null,null,null,null,null,null,null,null,null,null,null,2,null,null,null,null,null,null,2,null,null,null,null,null,null,null,null,null,null,null,null,null,null,null,null,null,null,null,4,1]
[15051,"Western Kingbird",null,null,null,null,null,null,null,null,null,null,null,null,1,null,null,null,null,null,null,1,null,null,null,null,null,null,null,null,null,null,null,null,null,null,null,null,null,null,null,null,2,1]
[15461,"Rose-throated Becard",null,null,null,null,null,null,null,null,null,null,null,null,null,null,null,2,null,null,null,null,null,null,null,null,null,null,null,null,null,null,null,null,null,null,null,null,null,null,null,null,2,1]
[17778,"Bell's Vireo",null,null,null,null,null,null,null,null,null,null,null,null,null,5,1,2,1,1,1,null,1,null,null,null,null,null,null,null,null,null,null,null,null,null,null,null,null,null,null,1,13,1]
[17786.5,"Hutton's Vireo",null,null,null,null,null,null,null,null,null,null,null,null,null,null,null,null,null,null,null,null,null,null,null,null,null,null,null,null,null,null,null,null,null,null,null,null,2,null,null,null,2,1]
[17804.2,"Plumbeous Vireo",null,null,null,null,null,null,null,null,null,null,null,null,null,null,null,null,null,null,null,null,null,null,1,null,1,null,null,null,null,1,1,null,null,null,null,null,null,null,null,null,4,1]
[18816,"Steller's Jay",null,null,null,null,null,null,null,null,null,null,null,null,null,null,null,null,null,null,null,null,null,null,3,null,null,null,null,null,5,null,1,null,null,null,null,4,null,null,null,null,13,1]
[18858,"Mexican Jay",null,null,null,null,null,null,null,null,null,null,null,null,null,null,null,null,null,null,null,null,null,null,null,null,null,null,null,null,null,1,null,null,null,null,null,null,5,null,null,null,6,1]
[19134,"Common Raven",null,null,1,1,null,null,"2 and 2 Corvus sp.",null,null,null,null,null,null,2,null,1,null,null,null,1,null,2,null,null,null,null,null,null,null,null,null,null,null,null,null,null,2,null,null,null,14,1]
[19981,"Violet-green Swallow",null,null,null,null,null,null,null,null,null,null,null,null,null,null,null,null,null,null,null,null,null,null,null,null,1,null,null,null,null,null,null,null,null,null,null,10,null,null,null,null,11,1]
[20037,"Barn Swallow",null,null,null,null,null,2,null,null,null,null,null,null,null,null,2,null,null,null,null,null,null,null,null,null,null,null,null,null,null,null,null,null,null,null,null,null,null,null,null,null,4,1]
[20470,"Bridled Titmouse",null,null,null,null,null,null,null,null,null,null,null,null,null,1,null,2,null,null,null,null,null,null,null,null,null,null,null,null,null,null,2,1,null,null,null,null,1,null,null,null,7,1]
[20501,"Verdin",1,null,null,null,null,null,null,null,1,null,null,null,null,2,null,1,null,2,null,2,null,null,null,null,null,null,null,null,null,null,null,null,null,null,null,null,null,2,null,null,10,1]
[20761,"White-breasted Nuthatch",null,null,null,null,null,null,null,null,null,null,null,null,null,2,null,1,null,null,null,null,null,null,null,null,null,null,null,null,null,null,null,null,null,null,null,null,null,null,null,null,3,1]
[20763,"White-breasted Nuthatch (Interior West)",null,null,null,null,null,null,null,null,null,null,null,null,null,null,null,null,null,null,null,null,null,1,null,null,null,null,null,null,null,null,1,1,null,null,null,null,null,null,null,null,3,0]
[20773,"Pygmy Nuthatch",null,null,null,null,null,null,null,null,null,null,null,null,null,null,null,null,null,null,null,null,null,null,null,null,null,null,null,null,1,null,null,null,null,null,null,null,null,null,null,null,1,1]
[20846,"Brown Creeper",null,null,null,null,null,null,null,null,null,null,null,null,null,null,null,null,null,null,null,null,null,null,1,null,1,null,null,null,null,null,null,null,null,null,null,null,null,null,null,null,2,1]
[20904,"Canyon Wren",null,null,null,null,null,null,null,null,null,null,null,null,null,null,null,null,null,null,null,null,null,null,null,null,null,null,null,null,null,null,1,null,null,null,null,null,1,null,null,null,2,1]
[21138,"House Wren",null,null,null,null,null,null,null,null,null,null,null,null,null,null,null,null,null,null,null,null,null,null,null,null,null,null,null,null,2,null,4,null,null,null,null,2,null,null,null,null,8,1]
[21151,"House Wren (Brown-throated)",null,null,null,null,null,null,null,null,null,null,null,null,null,null,null,null,null,null,null,null,null,null,null,null,null,null,null,null,null,null,1,null,null,null,null,null,null,null,null,null,1,0]
[21330,"Bewick's Wren",null,null,null,null,null,null,null,null,null,null,null,null,null,4,null,3,null,3,5,null,null,1,null,null,1,null,null,null,null,null,null,null,null,null,null,null,null,null,null,1,18,1]
[21345.5,"Cactus Wren",3,null,1,2,2,null,null,null,null,null,null,null,null,null,null,null,null,null,null,null,null,null,null,null,null,null,null,null,null,null,null,null,null,null,null,null,null,null,1,1,10,1]
[21403,"Blue-gray Gnatcatcher",null,null,null,null,null,null,null,null,null,null,null,null,null,null,null,null,null,null,null,null,null,null,null,null,1,null,null,null,null,null,null,null,null,null,null,null,null,null,null,null,1,1]
[21415,"Black-tailed Gnatcatcher",1,null,null,null,null,null,null,null,null,null,null,null,null,null,null,null,null,null,null,null,null,null,null,null,null,null,null,null,null,null,null,null,null,null,null,null,null,null,null,null,1,1]
[24491,"Western Bluebird",null,null,null,null,null,null,null,null,null,null,null,null,null,null,null,null,null,null,null,null,null,null,null,null,null,null,null,null,2,null,null,null,null,null,null,null,null,null,null,null,2,1]
[24608,"Hermit Thrush",null,null,null,null,null,null,null,null,null,null,null,null,null,null,null,null,null,null,null,null,null,null,1,null,3,null,null,null,null,null,2,null,null,null,null,null,null,null,null,null,6,1]
[24621,"Catharus sp.",null,null,null,null,null,null,null,null,null,null,null,null,null,null,null,null,null,null,null,null,null,null,null,null,null,null,null,null,null,null,1,null,null,null,null,null,null,null,null,null,1,0]
[24903,"American Robin",null,null,null,null,null,null,null,null,null,null,null,null,null,null,null,null,null,null,null,null,null,null,1,null,3,null,null,null,null,null,null,null,null,null,null,null,null,null,null,null,4,1]
[26380,"Curve-billed Thrasher",1,1,null,null,2,null,null,null,1,null,null,null,1,null,null,null,null,null,null,2,null,null,null,null,null,null,null,null,null,null,null,null,1,null,null,null,null,null,null,1,10,1]
[26464,"Northern Mockingbird",null,null,null,null,null,null,null,null,null,null,null,null,null,null,null,null,null,null,null,null,null,null,null,null,null,null,null,null,null,null,null,null,null,null,null,null,1,null,null,1,2,1]
[26621,"European Starling",null,null,null,null,null,null,null,null,null,null,null,null,null,null,null,1,null,null,null,null,null,null,null,null,null,null,null,null,null,null,null,null,null,null,null,null,null,null,null,null,1,1]
[27755,"Phainopepla",null,null,null,null,null,null,null,null,null,null,null,null,null,12,null,5,null,null,null,null,3,null,null,null,null,null,null,null,null,null,null,null,null,null,null,null,null,null,null,null,20,1]
[27763,"Olive Warbler",null,null,null,null,null,null,null,null,null,null,null,null,null,null,null,null,null,null,null,null,null,null,null,null,1,null,null,null,null,null,null,null,null,null,null,null,null,null,null,null,1,1]
[27800,"Lucy's Warbler",null,null,null,null,null,null,null,null,null,null,null,4,1,2,null,2,null,2,2,3,1,null,null,null,null,null,null,null,null,null,null,null,null,null,null,null,null,1,1,2,21,1]
[27804,"Virginia's Warbler",null,null,null,null,null,null,null,null,null,null,null,null,null,null,null,null,null,null,null,null,null,null,1,null,null,2,null,null,null,null,null,null,null,null,null,null,null,null,null,null,1,1]
[27838,"Common Yellowthroat",null,null,null,null,null,null,null,null,null,null,null,null,null,1,null,null,null,null,null,null,null,null,null,null,null,null,null,null,null,null,null,null,null,null,null,null,null,null,null,null,1,1]
[27885,"Yellow Warbler",null,null,null,null,null,null,null,null,null,null,null,null,null,null,null,2,null,4,3,2,null,null,null,null,null,null,null,null,null,null,null,null,null,null,null,null,null,null,null,null,11,1]
[27886,"Yellow Warbler (Northern)",null,null,null,null,null,null,null,null,null,null,null,null,null,2,null,null,null,null,null,null,null,null,null,null,null,null,null,null,null,null,null,null,null,null,null,null,null,null,null,null,2,1]
[27941,"Yellow-rumped Warbler (Audubon's)",null,null,null,null,null,null,null,null,null,null,null,null,null,null,null,null,null,null,null,null,null,null,null,null,null,null,null,null,null,1,null,null,null,null,null,null,null,null,null,null,1,1]
[27962,"Grace's Warbler",null,null,null,null,null,null,null,null,null,null,null,null,null,null,null,null,null,null,null,null,null,null,1,null,6,2,3,null,null,null,null,null,null,null,null,null,null,null,null,null,12,1]
[27968,"Black-throated Gray Warbler",null,null,null,null,null,null,null,null,null,null,null,null,null,null,null,null,null,null,null,null,null,null,null,null,null,null,null,null,null,null,1,null,null,null,null,null,1,null,null,null,2,1]
[28095,"Red-faced Warbler",null,null,null,null,null,null,null,null,null,null,null,null,null,null,null,null,null,null,null,null,null,null,null,null,null,2,2,null,null,null,null,null,null,null,null,null,null,null,null,null,4,1]
[28101,"Painted Redstart",null,null,null,null,null,null,null,null,null,null,null,null,null,null,null,null,null,null,null,null,null,null,null,null,null,null,null,null,null,null,1,null,null,null,null,null,1,null,null,null,2,1]
[29377.200000000001,"Rufous-winged Sparrow",null,null,null,null,null,null,null,null,null,null,null,null,null,null,null,null,null,2,null,null,null,null,null,null,null,null,null,null,null,null,null,null,null,null,null,null,null,null,null,null,2,1]
[29743,"Black-throated Sparrow",null,null,null,null,null,null,null,null,null,null,null,null,null,null,null,null,null,null,null,null,null,null,null,null,null,null,null,null,null,null,null,null,null,null,null,null,null,null,null,3,3,1]
[29978,"Yellow-eyed Junco",null,null,null,null,null,null,null,null,null,null,null,null,null,null,null,null,null,null,null,null,null,null,null,null,null,null,null,null,8,null,null,null,null,null,null,1,null,null,null,null,9,1]
[29984.39,"Song Sparrow",null,null,null,null,null,null,null,null,null,null,null,null,null,3,null,2,null,1,null,null,null,2,null,null,null,null,null,null,null,null,null,null,null,null,null,null,null,null,null,null,8,1]
[29984.560000000001,"Canyon Towhee",null,null,null,null,null,null,null,null,1,null,null,null,null,null,null,null,null,null,null,null,null,null,null,null,null,null,null,null,null,null,null,null,null,null,null,null,null,null,null,null,1,1]
[29984.58,"Abert's Towhee",null,null,null,null,null,null,null,null,null,null,null,null,null,2,null,3,null,null,null,null,null,null,null,null,null,null,null,null,null,null,null,null,null,null,null,null,null,null,null,null,5,1]
[29984.59,"Canyon/Abert's Towhee",null,null,null,null,null,null,null,null,null,null,null,null,null,null,null,null,null,null,null,null,null,null,null,null,null,null,null,null,null,null,null,1,null,null,null,null,null,null,null,null,1,0]
[29984.69,"Spotted Towhee",null,null,null,null,null,null,null,null,null,null,null,null,null,null,null,null,null,null,null,null,null,null,1,null,5,null,null,null,null,null,null,null,null,null,null,null,1,null,null,null,7,1]
[30130.6,"Yellow-breasted Chat",null,null,null,null,null,null,null,null,null,null,null,null,null,6,null,4,null,4,4,null,2,null,null,null,null,null,null,null,null,null,null,null,null,null,null,null,null,null,null,null,20,1]
[30141,"Hepatic Tanager",null,null,null,null,null,null,null,null,null,null,null,null,null,null,null,null,null,null,null,null,null,null,null,null,null,null,2,null,4,null,null,null,null,null,null,null,2,null,null,null,8,1]
[30160,"Summer Tanager",null,null,null,null,null,null,null,null,null,null,null,2,null,4,null,4,null,null,2,null,null,2,null,null,null,null,null,null,null,null,null,1,null,null,null,null,null,null,null,null,15,1]
[30164,"Western Tanager",null,null,null,null,2,null,null,null,null,null,null,null,null,null,null,null,null,1,null,null,1,null,null,null,null,null,null,null,null,null,null,4,3,null,null,null,1,null,null,null,12,1]
[30233,"Northern Cardinal",null,null,null,null,null,null,null,null,1,null,null,null,null,2,null,1,null,null,1,null,1,null,null,null,null,null,null,null,null,null,null,1,null,null,null,null,null,null,null,null,6,1]
[30253,"Pyrrhuloxia",null,null,null,null,null,null,null,null,null,null,null,null,null,null,null,null,null,null,null,null,null,null,null,null,null,null,null,null,null,null,null,1,null,null,null,null,null,null,null,null,1,1]
[30255,"Northern Cardinal/Pyrrhuloxia",null,null,null,null,1,null,null,null,null,null,null,null,null,null,null,null,null,null,null,null,null,null,null,null,null,null,null,null,null,null,null,null,null,null,null,null,null,null,null,null,1,0]
[30275,"Black-headed Grosbeak",null,null,null,null,null,null,null,null,null,null,null,null,null,1,null,1,null,null,null,null,null,1,1,null,null,1,2,null,null,null,1,2,2,null,null,null,1,null,null,null,13,1]
[30312,"Blue Grosbeak",null,null,null,null,null,null,null,null,null,null,null,null,null,null,null,null,null,null,null,null,null,null,null,null,null,null,null,null,null,null,null,1,null,null,null,null,null,null,null,1,2,1]
[30328,"Varied Bunting",null,null,null,null,null,null,null,null,null,null,null,null,null,null,null,null,null,null,null,null,1,null,null,null,null,null,null,null,null,null,null,null,null,null,null,null,null,null,null,null,1,1]
[30338.087,"Bullock's Oriole",null,null,null,null,null,null,null,null,null,null,null,null,null,null,null,null,null,null,null,2,null,null,null,null,null,null,null,null,null,null,null,null,null,null,null,null,null,null,null,null,2,1]
[30338.102999999999,"Scott's Oriole",null,null,null,null,null,null,null,null,null,null,null,null,null,null,null,null,null,null,null,null,null,null,null,null,null,null,null,null,null,null,1,null,null,null,null,null,1,null,null,null,2,1]
[30377,"Bronzed Cowbird",null,null,null,null,null,null,null,null,null,null,null,null,null,null,null,null,1,null,null,null,null,null,null,null,null,null,null,null,null,null,null,null,null,null,null,null,null,null,null,null,1,1]
[30380,"Brown-headed Cowbird",null,null,null,null,null,null,null,null,null,null,null,null,null,2,null,1,null,null,1,null,null,2,null,null,null,null,null,null,null,null,null,null,null,null,null,null,null,null,null,null,6,1]
[30432,"Great-tailed Grackle",null,null,null,null,null,null,null,null,null,null,null,null,null,null,null,null,null,null,null,15,null,null,null,null,null,null,null,null,null,null,null,null,null,null,null,null,null,null,null,null,15,1]
[30866,"House Finch",null,null,null,null,1,null,null,null,null,null,null,null,null,2,null,2,null,null,2,null,2,null,null,null,null,null,null,null,null,1,null,2,null,null,null,null,null,null,null,null,12,1]
[31021,"Pine Siskin",null,null,null,null,null,null,null,null,null,null,null,null,null,null,null,null,null,null,null,null,null,null,null,null,null,null,null,null,null,null,null,null,4,null,null,null,null,null,null,null,4,1]
[31032,"Lesser Goldfinch",null,null,null,null,null,null,null,null,null,null,null,null,null,3,null,3,null,null,null,null,null,null,null,null,null,null,null,null,null,null,null,null,null,null,null,null,null,null,null,null,6,1]
[31345,"House Sparrow",null,null,null,null,null,null,null,null,null,null,null,null,null,null,null,2,2,null,null,10,null,null,null,null,null,null,null,null,null,null,null,4,4,null,null,null,null,16,null,null,38,1]
[0,"Grand Total",9,3,4,8,21,36,26,2,4,1,1,10,17,88,7,71,6,71,34,57,22,29,13,5,34,7,16,null,37,21,24,24,23,1,1,26,24,21,4,18,826,{"$f":"SUM(AR6:AR141)+AR144","v":127}]
[]
[null,"Chihuahuan Raven",null,null,null,null,null,null,null,null,null,null,null,null,null,null,null,null,null,null,null,null,null,null,null,null,null,null,null,null,null,null,null,null,null,null,null,null,null,null,null,null,null,1]

{"sheet":"ZoneSums","index":1,"n_rows":146,"n_cols":19,"rows_kept":146,"cut":false,"hidden":false,"merged":[]}
["Taxonomic Sort","Species","00 AzSonora Desert Museum","01 Organ Pipe","02 Arivaca","03 Patagonia-Sonoita","04 Tubac","05 Huachuca Highlands","06 Ramsey Canyon","09 Chiricahua Highlands","08 Cave Creek Canyon","07 Portal","11 Chiricahua NM","12 Amerind Inst.","10 Kartchner Caverns","Grand Total of Tallies","Species Tally =",null,"08 Cave Creek Canyon"]
["Date and Time of List",null,"2018-05-19T14:34:00","5/19/18 -- 5/21/18","2018-05-21T12:52:00","5/21/18 -- 5/23/18","2018-05-22T06:45:00","5/23/18 -- 5/24/18","2018-05-24","5/24/18 -- 5/26/18","2018-05-25T10:26:00","2018-05-25","2018-05-26T09:26:00","2018-05-26T12:11:00","5/26/18  -- 5/27/18",null,{"$f":"SUM(Q5:Q299)-Q141","v":125}]
[]
[]
[396,"Mallard",{"$f":"SUM(RawData!C6:C6)","v":0},{"$f":"SUM(RawData!D6:M6)","v":0},{"$f":"SUM(RawData!N6:N6)","v":0},{"$f":"RawData!O6+SUM(RawData!T6:X6)","v":7},{"$f":"SUM(RawData!P6:S6)","v":0},{"$f":"SUM(RawData!Y6:AB6)","v":0},{"$f":"RawData!AC6","v":0},{"$f":"RawData!AE6+SUM(RawData!AJ6:AL6)","v":0},{"$f":"SUM(RawData!AF6:AG6)","v":0},{"$f":"SUM(RawData!AH6:AI6)","v":0},{"$f":"RawData!AM6","v":0},{"$f":"RawData!AN6","v":0},{"$f":"SUM(RawData!AO6:AP6)","v":0},{"$f":"COUNTIF(B5:O5,\">0\")","v":1},1]
[397,"Mallard (Northern)",{"$f":"SUM(RawData!C7:C7)","v":0},{"$f":"SUM(RawData!D7:M7)","v":0},{"$f":"SUM(RawData!N7:N7)","v":0},{"$f":"RawData!O7+SUM(RawData!T7:X7)","v":1},{"$f":"SUM(RawData!P7:S7)","v":0},{"$f":"SUM(RawData!Y7:AB7)","v":0},{"$f":"RawData!AC7","v":0},{"$f":"RawData!AE7+SUM(RawData!AJ7:AL7)","v":0},{"$f":"SUM(RawData!AF7:AG7)","v":0},{"$f":"SUM(RawData!AH7:AI7)","v":0},{"$f":"RawData!AM7","v":0},{"$f":"RawData!AN7","v":0},{"$f":"SUM(RawData!AO7:AP7)","v":0},{"$f":"COUNTIF(B6:O6,\">0\")","v":1},0]
[401,"Mallard (Mexican intergrade)",{"$f":"SUM(RawData!C8:C8)","v":0},{"$f":"SUM(RawData!D8:M8)","v":0},{"$f":"SUM(RawData!N8:N8)","v":0},{"$f":"RawData!O8+SUM(RawData!T8:X8)","v":3},{"$f":"SUM(RawData!P8:S8)","v":0},{"$f":"SUM(RawData!Y8:AB8)","v":0},{"$f":"RawData!AC8","v":0},{"$f":"RawData!AE8+SUM(RawData!AJ8:AL8)","v":0},{"$f":"SUM(RawData!AF8:AG8)","v":0},{"$f":"SUM(RawData!AH8:AI8)","v":0},{"$f":"RawData!AM8","v":0},{"$f":"RawData!AN8","v":0},{"$f":"SUM(RawData!AO8:AP8)","v":0},1,0]
[567,"Ruddy Duck",{"$f":"SUM(RawData!C9:C9)","v":0},{"$f":"SUM(RawData!D9:M9)","v":0},{"$f":"SUM(RawData!N9:N9)","v":0},{"$f":"RawData!O9+SUM(RawData!T9:X9)","v":1},{"$f":"SUM(RawData!P9:S9)","v":0},{"$f":"SUM(RawData!Y9:AB9)","v":0},{"$f":"RawData!AC9","v":0},{"$f":"RawData!AE9+SUM(RawData!AJ9:AL9)","v":0},{"$f":"SUM(RawData!AF9:AG9)","v":0},{"$f":"SUM(RawData!AH9:AI9)","v":0},{"$f":"RawData!AM9","v":0},{"$f":"RawData!AN9","v":0},{"$f":"SUM(RawData!AO9:AP9)","v":0},1,1]
[796,"Gambel's Quail",{"$f":"SUM(RawData!C10:C10)","v":0},{"$f":"SUM(RawData!D10:M10)","v":0},{"$f":"SUM(RawData!N10:N10)","v":0},{"$f":"RawData!O10+SUM(RawData!T10:X10)","v":2},{"$f":"SUM(RawData!P10:S10)","v":0},{"$f":"SUM(RawData!Y10:AB10)","v":0},{"$f":"RawData!AC10","v":0},{"$f":"RawData!AE10+SUM(RawData!AJ10:AL10)","v":0},{"$f":"SUM(RawData!AF10:AG10)","v":0},{"$f":"SUM(RawData!AH10:AI10)","v":0},{"$f":"RawData!AM10","v":0},{"$f":"RawData!AN10","v":0},{"$f":"SUM(RawData!AO10:AP10)","v":0},1,1]
[1553,"Wild Turkey",{"$f":"SUM(RawData!C11:C11)","v":0},{"$f":"SUM(RawData!D11:M11)","v":0},{"$f":"SUM(RawData!N11:N11)","v":0},{"$f":"RawData!O11+SUM(RawData!T11:X11)","v":0},{"$f":"SUM(RawData!P11:S11)","v":0},{"$f":"SUM(RawData!Y11:AB11)","v":0},{"$f":"RawData!AC11","v":1},{"$f":"RawData!AE11+SUM(RawData!AJ11:AL11)","v":2},{"$f":"SUM(RawData!AF11:AG11)","v":0},{"$f":"SUM(RawData!AH11:AI11)","v":0},{"$f":"RawData!AM11","v":0},{"$f":"RawData!AN11","v":0},{"$f":"SUM(RawData!AO11:AP11)","v":0},2,1]
[1985,"Neotropic Cormorant",{"$f":"SUM(RawData!C12:C12)","v":0},{"$f":"SUM(RawData!D12:M12)","v":0},{"$f":"SUM(RawData!N12:N12)","v":0},{"$f":"RawData!O12+SUM(RawData!T12:X12)","v":12},{"$f":"SUM(RawData!P12:S12)","v":0},{"$f":"SUM(RawData!Y12:AB12)","v":0},{"$f":"RawData!AC12","v":0},{"$f":"RawData!AE12+SUM(RawData!AJ12:AL12)","v":0},{"$f":"SUM(RawData!AF12:AG12)","v":0},{"$f":"SUM(RawData!AH12:AI12)","v":0},{"$f":"RawData!AM12","v":0},{"$f":"RawData!AN12","v":0},{"$f":"SUM(RawData!AO12:AP12)","v":0},1,1]
[1988,"Double-crested Cormorant",{"$f":"SUM(RawData!C13:C13)","v":0},{"$f":"SUM(RawData!D13:M13)","v":0},{"$f":"SUM(RawData!N13:N13)","v":0},{"$f":"RawData!O13+SUM(RawData!T13:X13)","v":1},{"$f":"SUM(RawData!P13:S13)","v":0},{"$f":"SUM(RawData!Y13:AB13)","v":0},{"$f":"RawData!AC13","v":0},{"$f":"RawData!AE13+SUM(RawData!AJ13:AL13)","v":0},{"$f":"SUM(RawData!AF13:AG13)","v":0},{"$f":"SUM(RawData!AH13:AI13)","v":0},{"$f":"RawData!AM13","v":0},{"$f":"RawData!AN13","v":0},{"$f":"SUM(RawData!AO13:AP13)","v":0},1,1]
[2118,"Great Blue Heron",{"$f":"SUM(RawData!C14:C14)","v":0},{"$f":"SUM(RawData!D14:M14)","v":0},{"$f":"SUM(RawData!N14:N14)","v":0},{"$f":"RawData!O14+SUM(RawData!T14:X14)","v":1},{"$f":"SUM(RawData!P14:S14)","v":0},{"$f":"SUM(RawData!Y14:AB14)","v":0},{"$f":"RawData!AC14","v":0},{"$f":"RawData!AE14+SUM(RawData!AJ14:AL14)","v":0},{"$f":"SUM(RawData!AF14:AG14)","v":0},{"$f":"SUM(RawData!AH14:AI14)","v":0},{"$f":"RawData!AM14","v":0},{"$f":"RawData!AN14","v":0},{"$f":"SUM(RawData!AO14:AP14)","v":0},1,1]
[2233,"Black-crowned Night-Heron",{"$f":"SUM(RawData!C15:C15)","v":0},{"$f":"SUM(RawData!D15:M15)","v":0},{"$f":"SUM(RawData!N15:N15)","v":0},{"$f":"RawData!O15+SUM(RawData!T15:X15)","v":1},{"$f":"SUM(RawData!P15:S15)","v":0},{"$f":"SUM(RawData!Y15:AB15)","v":0},{"$f":"RawData!AC15","v":0},{"$f":"RawData!AE15+SUM(RawData!AJ15:AL15)","v":0},{"$f":"SUM(RawData!AF15:AG15)","v":0},{"$f":"SUM(RawData!AH15:AI15)","v":0},{"$f":"RawData!AM15","v":0},{"$f":"RawData!AN15","v":0},{"$f":"SUM(RawData!AO15:AP15)","v":0},1,1]
[2270,"White-faced Ibis",{"$f":"SUM(RawData!C16:C16)","v":0},{"$f":"SUM(RawData!D16:M16)","v":0},{"$f":"SUM(RawData!N16:N16)","v":0},{"$f":"RawData!O16+SUM(RawData!T16:X16)","v":5},{"$f":"SUM(RawData!P16:S16)","v":0},{"$f":"SUM(RawData!Y16:AB16)","v":0},{"$f":"RawData!AC16","v":0},{"$f":"RawData!AE16+SUM(RawData!AJ16:AL16)","v":0},{"$f":"SUM(RawData!AF16:AG16)","v":0},{"$f":"SUM(RawData!AH16:AI16)","v":0},{"$f":"RawData!AM16","v":0},{"$f":"RawData!AN16","v":0},{"$f":"SUM(RawData!AO16:AP16)","v":0},1,1]
[2358,"Black Vulture",{"$f":"SUM(RawData!C17:C17)","v":0},{"$f":"SUM(RawData!D17:M17)","v":1},{"$f":"SUM(RawData!N17:N17)","v":0},{"$f":"RawData!O17+SUM(RawData!T17:X17)","v":1},{"$f":"SUM(RawData!P17:S17)","v":2},{"$f":"SUM(RawData!Y17:AB17)","v":0},{"$f":"RawData!AC17","v":0},{"$f":"RawData!AE17+SUM(RawData!AJ17:AL17)","v":0},{"$f":"SUM(RawData!AF17:AG17)","v":0},{"$f":"SUM(RawData!AH17:AI17)","v":0},{"$f":"RawData!AM17","v":0},{"$f":"RawData!AN17","v":0},{"$f":"SUM(RawData!AO17:AP17)","v":0},3,1]
[2362,"Turkey Vulture",{"$f":"SUM(RawData!C18:C18)","v":0},{"$f":"SUM(RawData!D18:M18)","v":6},{"$f":"SUM(RawData!N18:N18)","v":0},{"$f":"RawData!O18+SUM(RawData!T18:X18)","v":14},{"$f":"SUM(RawData!P18:S18)","v":2},{"$f":"SUM(RawData!Y18:AB18)","v":0},{"$f":"RawData!AC18","v":0},{"$f":"RawData!AE18+SUM(RawData!AJ18:AL18)","v":0},{"$f":"SUM(RawData!AF18:AG18)","v":1},{"$f":"SUM(RawData!AH18:AI18)","v":0},{"$f":"RawData!AM18","v":1},{"$f":"RawData!AN18","v":0},{"$f":"SUM(RawData!AO18:AP18)","v":0},5,1]
[2821,"Cooper's Hawk",{"$f":"SUM(RawData!C19:C19)","v":0},{"$f":"SUM(RawData!D19:M19)","v":0},{"$f":"SUM(RawData!N19:N19)","v":0},{"$f":"RawData!O19+SUM(RawData!T19:X19)","v":0},{"$f":"SUM(RawData!P19:S19)","v":2},{"$f":"SUM(RawData!Y19:AB19)","v":0},{"$f":"RawData!AC19","v":0},{"$f":"RawData!AE19+SUM(RawData!AJ19:AL19)","v":0},{"$f":"SUM(RawData!AF19:AG19)","v":0},{"$f":"SUM(RawData!AH19:AI19)","v":0},{"$f":"RawData!AM19","v":0},{"$f":"RawData!AN19","v":0},{"$f":"SUM(RawData!AO19:AP19)","v":0},1,1]
[2958.2,"Gray Hawk",{"$f":"SUM(RawData!C20:C20)","v":0},{"$f":"SUM(RawData!D20:M20)","v":0},{"$f":"SUM(RawData!N20:N20)","v":0},{"$f":"RawData!O20+SUM(RawData!T20:X20)","v":0},{"$f":"SUM(RawData!P20:S20)","v":2},{"$f":"SUM(RawData!Y20:AB20)","v":0},{"$f":"RawData!AC20","v":0},{"$f":"RawData!AE20+SUM(RawData!AJ20:AL20)","v":0},{"$f":"SUM(RawData!AF20:AG20)","v":0},{"$f":"SUM(RawData!AH20:AI20)","v":0},{"$f":"RawData!AM20","v":0},{"$f":"RawData!AN20","v":0},{"$f":"SUM(RawData!AO20:AP20)","v":0},1,1]
[2984,"Swainson's Hawk",{"$f":"SUM(RawData!C21:C21)","v":0},{"$f":"SUM(RawData!D21:M21)","v":0},{"$f":"SUM(RawData!N21:N21)","v":0},{"$f":"RawData!O21+SUM(RawData!T21:X21)","v":0},{"$f":"SUM(RawData!P21:S21)","v":1},{"$f":"SUM(RawData!Y21:AB21)","v":0},{"$f":"RawData!AC21","v":0},{"$f":"RawData!AE21+SUM(RawData!AJ21:AL21)","v":0},{"$f":"SUM(RawData!AF21:AG21)","v":0},{"$f":"SUM(RawData!AH21:AI21)","v":0},{"$f":"RawData!AM21","v":0},{"$f":"RawData!AN21","v":0},{"$f":"SUM(RawData!AO21:AP21)","v":0},1,1]
[2989,"Red-tailed Hawk",{"$f":"SUM(RawData!C22:C22)","v":0},{"$f":"SUM(RawData!D22:M22)","v":5},{"$f":"SUM(RawData!N22:N22)","v":0},{"$f":"RawData!O22+SUM(RawData!T22:X22)","v":0},{"$f":"SUM(RawData!P22:S22)","v":0},{"$f":"SUM(RawData!Y22:AB22)","v":0},{"$f":"RawData!AC22","v":0},{"$f":"RawData!AE22+SUM(RawData!AJ22:AL22)","v":0},{"$f":"SUM(RawData!AF22:AG22)","v":0},{"$f":"SUM(RawData!AH22:AI22)","v":0},{"$f":"RawData!AM22","v":0},{"$f":"RawData!AN22","v":0},{"$f":"SUM(RawData!AO22:AP22)","v":0},1,1]
[3614.5,"American Coot",{"$f":"SUM(RawData!C23:C23)","v":0},{"$f":"SUM(RawData!D23:M23)","v":8},{"$f":"SUM(RawData!N23:N23)","v":0},{"$f":"RawData!O23+SUM(RawData!T23:X23)","v":26},{"$f":"SUM(RawData!P23:S23)","v":0},{"$f":"SUM(RawData!Y23:AB23)","v":0},{"$f":"RawData!AC23","v":0},{"$f":"RawData!AE23+SUM(RawData!AJ23:AL23)","v":0},{"$f":"SUM(RawData!AF23:AG23)","v":0},{"$f":"SUM(RawData!AH23:AI23)","v":0},{"$f":"RawData!AM23","v":0},{"$f":"RawData!AN23","v":0},{"$f":"SUM(RawData!AO23:AP23)","v":0},2,1]
[4139.0200000000004,"Spotted Sandpiper",{"$f":"SUM(RawData!C24:C24)","v":0},{"$f":"SUM(RawData!D24:M24)","v":1},{"$f":"SUM(RawData!N24:N24)","v":0},{"$f":"RawData!O24+SUM(RawData!T24:X24)","v":0},{"$f":"SUM(RawData!P24:S24)","v":0},{"$f":"SUM(RawData!Y24:AB24)","v":0},{"$f":"RawData!AC24","v":0},{"$f":"RawData!AE24+SUM(RawData!AJ24:AL24)","v":0},{"$f":"SUM(RawData!AF24:AG24)","v":0},{"$f":"SUM(RawData!AH24:AI24)","v":0},{"$f":"RawData!AM24","v":0},{"$f":"RawData!AN24","v":0},{"$f":"SUM(RawData!AO24:AP24)","v":0},1,1]
[4508,"Forster's Tern",{"$f":"SUM(RawData!C25:C25)","v":0},{"$f":"SUM(RawData!D25:M25)","v":0},{"$f":"SUM(RawData!N25:N25)","v":0},{"$f":"RawData!O25+SUM(RawData!T25:X25)","v":1},{"$f":"SUM(RawData!P25:S25)","v":0},{"$f":"SUM(RawData!Y25:AB25)","v":0},{"$f":"RawData!AC25","v":0},{"$f":"RawData!AE25+SUM(RawData!AJ25:AL25)","v":0},{"$f":"SUM(RawData!AF25:AG25)","v":0},{"$f":"SUM(RawData!AH25:AI25)","v":0},{"$f":"RawData!AM25","v":0},{"$f":"RawData!AN25","v":0},{"$f":"SUM(RawData!AO25:AP25)","v":0},1,1]
[4828,"Eurasian Collared-Dove",{"$f":"SUM(RawData!C26:C26)","v":0},{"$f":"SUM(RawData!D26:M26)","v":0},{"$f":"SUM(RawData!N26:N26)","v":0},{"$f":"RawData!O26+SUM(RawData!T26:X26)","v":0},{"$f":"SUM(RawData!P26:S26)","v":2},{"$f":"SUM(RawData!Y26:AB26)","v":0},{"$f":"RawData!AC26","v":0},{"$f":"RawData!AE26+SUM(RawData!AJ26:AL26)","v":0},{"$f":"SUM(RawData!AF26:AG26)","v":0},{"$f":"SUM(RawData!AH26:AI26)","v":0},{"$f":"RawData!AM26","v":0},{"$f":"RawData!AN26","v":0},{"$f":"SUM(RawData!AO26:AP26)","v":0},1,1]
[4990.0150000000003,"Inca Dove",{"$f":"SUM(RawData!C27:C27)","v":0},{"$f":"SUM(RawData!D27:M27)","v":0},{"$f":"SUM(RawData!N27:N27)","v":0},{"$f":"RawData!O27+SUM(RawData!T27:X27)","v":0},{"$f":"SUM(RawData!P27:S27)","v":0},{"$f":"SUM(RawData!Y27:AB27)","v":0},{"$f":"RawData!AC27","v":0},{"$f":"RawData!AE27+SUM(RawData!AJ27:AL27)","v":0},{"$f":"SUM(RawData!AF27:AG27)","v":0},{"$f":"SUM(RawData!AH27:AI27)","v":4},{"$f":"RawData!AM27","v":0},{"$f":"RawData!AN27","v":0},{"$f":"SUM(RawData!AO27:AP27)","v":0},1,1]
[4990.0200000000004,"Common Ground-Dove",{"$f":"SUM(RawData!C28:C28)","v":0},{"$f":"SUM(RawData!D28:M28)","v":0},{"$f":"SUM(RawData!N28:N28)","v":0},{"$f":"RawData!O28+SUM(RawData!T28:X28)","v":0},{"$f":"SUM(RawData!P28:S28)","v":3},{"$f":"SUM(RawData!Y28:AB28)","v":0},{"$f":"RawData!AC28","v":0},{"$f":"RawData!AE28+SUM(RawData!AJ28:AL28)","v":0},{"$f":"SUM(RawData!AF28:AG28)","v":0},{"$f":"SUM(RawData!AH28:AI28)","v":0},{"$f":"RawData!AM28","v":0},{"$f":"RawData!AN28","v":0},{"$f":"SUM(RawData!AO28:AP28)","v":0},1,1]
[4992,"White-winged Dove",{"$f":"SUM(RawData!C29:C29)","v":3},{"$f":"SUM(RawData!D29:M29)","v":41},{"$f":"SUM(RawData!N29:N29)","v":0},{"$f":"RawData!O29+SUM(RawData!T29:X29)","v":22},{"$f":"SUM(RawData!P29:S29)","v":6},{"$f":"SUM(RawData!Y29:AB29)","v":0},{"$f":"RawData!AC29","v":0},{"$f":"RawData!AE29+SUM(RawData!AJ29:AL29)","v":0},{"$f":"SUM(RawData!AF29:AG29)","v":0},{"$f":"SUM(RawData!AH29:AI29)","v":1},{"$f":"RawData!AM29","v":0},{"$f":"RawData!AN29","v":0},{"$f":"SUM(RawData!AO29:AP29)","v":2},6,1]
[5015,"Mourning Dove",{"$f":"SUM(RawData!C30:C30)","v":0},{"$f":"SUM(RawData!D30:M30)","v":0},{"$f":"SUM(RawData!N30:N30)","v":0},{"$f":"RawData!O30+SUM(RawData!T30:X30)","v":0},{"$f":"SUM(RawData!P30:S30)","v":2},{"$f":"SUM(RawData!Y30:AB30)","v":0},{"$f":"RawData!AC30","v":0},{"$f":"RawData!AE30+SUM(RawData!AJ30:AL30)","v":0},{"$f":"SUM(RawData!AF30:AG30)","v":0},{"$f":"SUM(RawData!AH30:AI30)","v":0},{"$f":"RawData!AM30","v":0},{"$f":"RawData!AN30","v":0},{"$f":"SUM(RawData!AO30:AP30)","v":0},1,1]
[7254,"Great Horned Owl",{"$f":"SUM(RawData!C31:C31)","v":0},{"$f":"SUM(RawData!D31:M31)","v":0},{"$f":"SUM(RawData!N31:N31)","v":0},{"$f":"RawData!O31+SUM(RawData!T31:X31)","v":0},{"$f":"SUM(RawData!P31:S31)","v":0},{"$f":"SUM(RawData!Y31:AB31)","v":0},{"$f":"RawData!AC31","v":0},{"$f":"RawData!AE31+SUM(RawData!AJ31:AL31)","v":1},{"$f":"SUM(RawData!AF31:AG31)","v":0},{"$f":"SUM(RawData!AH31:AI31)","v":0},{"$f":"RawData!AM31","v":0},{"$f":"RawData!AN31","v":0},{"$f":"SUM(RawData!AO31:AP31)","v":0},1,1]
[7350,"Northern Pygmy-Owl (Mountain)",{"$f":"SUM(RawData!C32:C32)","v":0},{"$f":"SUM(RawData!D32:M32)","v":0},{"$f":"SUM(RawData!N32:N32)","v":0},{"$f":"RawData!O32+SUM(RawData!T32:X32)","v":0},{"$f":"SUM(RawData!P32:S32)","v":0},{"$f":"SUM(RawData!Y32:AB32)","v":2},{"$f":"RawData!AC32","v":0},{"$f":"RawData!AE32+SUM(RawData!AJ32:AL32)","v":0},{"$f":"SUM(RawData!AF32:AG32)","v":0},{"$f":"SUM(RawData!AH32:AI32)","v":0},{"$f":"RawData!AM32","v":0},{"$f":"RawData!AN32","v":0},{"$f":"SUM(RawData!AO32:AP32)","v":0},1,1]
[7424,"Elf Owl",{"$f":"SUM(RawData!C33:C33)","v":0},{"$f":"SUM(RawData!D33:M33)","v":0},{"$f":"SUM(RawData!N33:N33)","v":0},{"$f":"RawData!O33+SUM(RawData!T33:X33)","v":0},{"$f":"SUM(RawData!P33:S33)","v":0},{"$f":"SUM(RawData!Y33:AB33)","v":2},{"$f":"RawData!AC33","v":0},{"$f":"RawData!AE33+SUM(RawData!AJ33:AL33)","v":0},{"$f":"SUM(RawData!AF33:AG33)","v":0},{"$f":"SUM(RawData!AH33:AI33)","v":0},{"$f":"RawData!AM33","v":0},{"$f":"RawData!AN33","v":0},{"$f":"SUM(RawData!AO33:AP33)","v":0},1,1]
[7767,"Lesser Nighthawk",{"$f":"SUM(RawData!C34:C34)","v":0},{"$f":"SUM(RawData!D34:M34)","v":0},{"$f":"SUM(RawData!N34:N34)","v":0},{"$f":"RawData!O34+SUM(RawData!T34:X34)","v":0},{"$f":"SUM(RawData!P34:S34)","v":0},{"$f":"SUM(RawData!Y34:AB34)","v":0},{"$f":"RawData!AC34","v":0},{"$f":"RawData!AE34+SUM(RawData!AJ34:AL34)","v":0},{"$f":"SUM(RawData!AF34:AG34)","v":0},{"$f":"SUM(RawData!AH34:AI34)","v":0},{"$f":"RawData!AM34","v":0},{"$f":"RawData!AN34","v":0},{"$f":"SUM(RawData!AO34:AP34)","v":1},1,1]
[7862,"Common Poorwill",{"$f":"SUM(RawData!C35:C35)","v":0},{"$f":"SUM(RawData!D35:M35)","v":3},{"$f":"SUM(RawData!N35:N35)","v":0},{"$f":"RawData!O35+SUM(RawData!T35:X35)","v":0},{"$f":"SUM(RawData!P35:S35)","v":0},{"$f":"SUM(RawData!Y35:AB35)","v":3},{"$f":"RawData!AC35","v":0},{"$f":"RawData!AE35+SUM(RawData!AJ35:AL35)","v":0},{"$f":"SUM(RawData!AF35:AG35)","v":0},{"$f":"SUM(RawData!AH35:AI35)","v":0},{"$f":"RawData!AM35","v":0},{"$f":"RawData!AN35","v":0},{"$f":"SUM(RawData!AO35:AP35)","v":1},3,1]
[7913,"Mexican Whip-poor-will",{"$f":"SUM(RawData!C36:C36)","v":0},{"$f":"SUM(RawData!D36:M36)","v":0},{"$f":"SUM(RawData!N36:N36)","v":0},{"$f":"RawData!O36+SUM(RawData!T36:X36)","v":0},{"$f":"SUM(RawData!P36:S36)","v":0},{"$f":"SUM(RawData!Y36:AB36)","v":0},{"$f":"RawData!AC36","v":0},{"$f":"RawData!AE36+SUM(RawData!AJ36:AL36)","v":2},{"$f":"SUM(RawData!AF36:AG36)","v":0},{"$f":"SUM(RawData!AH36:AI36)","v":0},{"$f":"RawData!AM36","v":0},{"$f":"RawData!AN36","v":0},{"$f":"SUM(RawData!AO36:AP36)","v":0},1,1]
[8345,"White-throated Swift",{"$f":"SUM(RawData!C37:C37)","v":0},{"$f":"SUM(RawData!D37:M37)","v":0},{"$f":"SUM(RawData!N37:N37)","v":0},{"$f":"RawData!O37+SUM(RawData!T37:X37)","v":2},{"$f":"SUM(RawData!P37:S37)","v":0},{"$f":"SUM(RawData!Y37:AB37)","v":0},{"$f":"RawData!AC37","v":1},{"$f":"RawData!AE37+SUM(RawData!AJ37:AL37)","v":0},{"$f":"SUM(RawData!AF37:AG37)","v":0},{"$f":"SUM(RawData!AH37:AI37)","v":0},{"$f":"RawData!AM37","v":0},{"$f":"RawData!AN37","v":0},{"$f":"SUM(RawData!AO37:AP37)","v":0},2,1]
[8816,"Rivoli's Hummingbird",{"$f":"SUM(RawData!C38:C38)","v":0},{"$f":"SUM(RawData!D38:M38)","v":0},{"$f":"SUM(RawData!N38:N38)","v":0},{"$f":"RawData!O38+SUM(RawData!T38:X38)","v":0},{"$f":"SUM(RawData!P38:S38)","v":0},{"$f":"SUM(RawData!Y38:AB38)","v":0},{"$f":"RawData!AC38","v":0},{"$f":"RawData!AE38+SUM(RawData!AJ38:AL38)","v":1},{"$f":"SUM(RawData!AF38:AG38)","v":3},{"$f":"SUM(RawData!AH38:AI38)","v":0},{"$f":"RawData!AM38","v":0},{"$f":"RawData!AN38","v":0},{"$f":"SUM(RawData!AO38:AP38)","v":0},2,1]
[8840,"Blue-throated Hummingbird",{"$f":"SUM(RawData!C39:C39)","v":0},{"$f":"SUM(RawData!D39:M39)","v":0},{"$f":"SUM(RawData!N39:N39)","v":0},{"$f":"RawData!O39+SUM(RawData!T39:X39)","v":0},{"$f":"SUM(RawData!P39:S39)","v":0},{"$f":"SUM(RawData!Y39:AB39)","v":0},{"$f":"RawData!AC39","v":0},{"$f":"RawData!AE39+SUM(RawData!AJ39:AL39)","v":0},{"$f":"SUM(RawData!AF39:AG39)","v":5},{"$f":"SUM(RawData!AH39:AI39)","v":2},{"$f":"RawData!AM39","v":0},{"$f":"RawData!AN39","v":0},{"$f":"SUM(RawData!AO39:AP39)","v":0},2,1]
[8898,"Black-chinned Hummingbird",{"$f":"SUM(RawData!C40:C40)","v":0},{"$f":"SUM(RawData!D40:M40)","v":0},{"$f":"SUM(RawData!N40:N40)","v":0},{"$f":"RawData!O40+SUM(RawData!T40:X40)","v":2},{"$f":"SUM(RawData!P40:S40)","v":0},{"$f":"SUM(RawData!Y40:AB40)","v":0},{"$f":"RawData!AC40","v":0},{"$f":"RawData!AE40+SUM(RawData!AJ40:AL40)","v":1},{"$f":"SUM(RawData!AF40:AG40)","v":3},{"$f":"SUM(RawData!AH40:AI40)","v":2},{"$f":"RawData!AM40","v":0},{"$f":"RawData!AN40","v":0},{"$f":"SUM(RawData!AO40:AP40)","v":0},4,1]
[8914,"Costa's Hummingbird",{"$f":"SUM(RawData!C41:C41)","v":0},{"$f":"SUM(RawData!D41:M41)","v":1},{"$f":"SUM(RawData!N41:N41)","v":0},{"$f":"RawData!O41+SUM(RawData!T41:X41)","v":0},{"$f":"SUM(RawData!P41:S41)","v":0},{"$f":"SUM(RawData!Y41:AB41)","v":0},{"$f":"RawData!AC41","v":0},{"$f":"RawData!AE41+SUM(RawData!AJ41:AL41)","v":0},{"$f":"SUM(RawData!AF41:AG41)","v":0},{"$f":"SUM(RawData!AH41:AI41)","v":0},{"$f":"RawData!AM41","v":0},{"$f":"RawData!AN41","v":0},{"$f":"SUM(RawData!AO41:AP41)","v":0},1,1]
[8922,"Broad-tailed Hummingbird",{"$f":"SUM(RawData!C42:C42)","v":0},{"$f":"SUM(RawData!D42:M42)","v":0},{"$f":"SUM(RawData!N42:N42)","v":0},{"$f":"RawData!O42+SUM(RawData!T42:X42)","v":0},{"$f":"SUM(RawData!P42:S42)","v":0},{"$f":"SUM(RawData!Y42:AB42)","v":0},{"$f":"RawData!AC42","v":0},{"$f":"RawData!AE42+SUM(RawData!AJ42:AL42)","v":8},{"$f":"SUM(RawData!AF42:AG42)","v":0},{"$f":"SUM(RawData!AH42:AI42)","v":0},{"$f":"RawData!AM42","v":0},{"$f":"RawData!AN42","v":0},{"$f":"SUM(RawData!AO42:AP42)","v":0},1,1]
[8992,"Broad-billed Hummingbird",{"$f":"SUM(RawData!C43:C43)","v":0},{"$f":"SUM(RawData!D43:M43)","v":0},{"$f":"SUM(RawData!N43:N43)","v":0},{"$f":"RawData!O43+SUM(RawData!T43:X43)","v":8},{"$f":"SUM(RawData!P43:S43)","v":3},{"$f":"SUM(RawData!Y43:AB43)","v":0},{"$f":"RawData!AC43","v":0},{"$f":"RawData!AE43+SUM(RawData!AJ43:AL43)","v":0},{"$f":"SUM(RawData!AF43:AG43)","v":0},{"$f":"SUM(RawData!AH43:AI43)","v":3},{"$f":"RawData!AM43","v":0},{"$f":"RawData!AN43","v":0},{"$f":"SUM(RawData!AO43:AP43)","v":0},3,1]
[8994,"Broad-billed Hummingbird (Northern)",{"$f":"SUM(RawData!C44:C44)","v":0},{"$f":"SUM(RawData!D44:M44)","v":0},{"$f":"SUM(RawData!N44:N44)","v":0},{"$f":"RawData!O44+SUM(RawData!T44:X44)","v":0},{"$f":"SUM(RawData!P44:S44)","v":1},{"$f":"SUM(RawData!Y44:AB44)","v":0},{"$f":"RawData!AC44","v":0},{"$f":"RawData!AE44+SUM(RawData!AJ44:AL44)","v":0},{"$f":"SUM(RawData!AF44:AG44)","v":0},{"$f":"SUM(RawData!AH44:AI44)","v":0},{"$f":"RawData!AM44","v":0},{"$f":"RawData!AN44","v":0},{"$f":"SUM(RawData!AO44:AP44)","v":0},1,0]
[9158,"Berylline Hummingbird",{"$f":"SUM(RawData!C45:C45)","v":0},{"$f":"SUM(RawData!D45:M45)","v":0},{"$f":"SUM(RawData!N45:N45)","v":0},{"$f":"RawData!O45+SUM(RawData!T45:X45)","v":1},{"$f":"SUM(RawData!P45:S45)","v":0},{"$f":"SUM(RawData!Y45:AB45)","v":0},{"$f":"RawData!AC45","v":0},{"$f":"RawData!AE45+SUM(RawData!AJ45:AL45)","v":0},{"$f":"SUM(RawData!AF45:AG45)","v":0},{"$f":"SUM(RawData!AH45:AI45)","v":0},{"$f":"RawData!AM45","v":0},{"$f":"RawData!AN45","v":0},{"$f":"SUM(RawData!AO45:AP45)","v":0},1,1]
[9194,"Violet-crowned Hummingbird",{"$f":"SUM(RawData!C46:C46)","v":0},{"$f":"SUM(RawData!D46:M46)","v":0},{"$f":"SUM(RawData!N46:N46)","v":0},{"$f":"RawData!O46+SUM(RawData!T46:X46)","v":2},{"$f":"SUM(RawData!P46:S46)","v":0},{"$f":"SUM(RawData!Y46:AB46)","v":0},{"$f":"RawData!AC46","v":0},{"$f":"RawData!AE46+SUM(RawData!AJ46:AL46)","v":0},{"$f":"SUM(RawData!AF46:AG46)","v":0},{"$f":"SUM(RawData!AH46:AI46)","v":0},{"$f":"RawData!AM46","v":0},{"$f":"RawData!AN46","v":0},{"$f":"SUM(RawData!AO46:AP46)","v":0},1,1]
[9298,"hummingbird sp.",{"$f":"SUM(RawData!C47:C47)","v":0},{"$f":"SUM(RawData!D47:M47)","v":0},{"$f":"SUM(RawData!N47:N47)","v":0},{"$f":"RawData!O47+SUM(RawData!T47:X47)","v":1},{"$f":"SUM(RawData!P47:S47)","v":0},{"$f":"SUM(RawData!Y47:AB47)","v":0},{"$f":"RawData!AC47","v":0},{"$f":"RawData!AE47+SUM(RawData!AJ47:AL47)","v":0},{"$f":"SUM(RawData!AF47:AG47)","v":0},{"$f":"SUM(RawData!AH47:AI47)","v":0},{"$f":"RawData!AM47","v":0},{"$f":"RawData!AN47","v":0},{"$f":"SUM(RawData!AO47:AP47)","v":0},1,0]
[9402,"Elegant Trogon",{"$f":"SUM(RawData!C48:C48)","v":0},{"$f":"SUM(RawData!D48:M48)","v":0},{"$f":"SUM(RawData!N48:N48)","v":0},{"$f":"RawData!O48+SUM(RawData!T48:X48)","v":0},{"$f":"SUM(RawData!P48:S48)","v":0},{"$f":"SUM(RawData!Y48:AB48)","v":0},{"$f":"RawData!AC48","v":1},{"$f":"RawData!AE48+SUM(RawData!AJ48:AL48)","v":0},{"$f":"SUM(RawData!AF48:AG48)","v":1},{"$f":"SUM(RawData!AH48:AI48)","v":0},{"$f":"RawData!AM48","v":0},{"$f":"RawData!AN48","v":0},{"$f":"SUM(RawData!AO48:AP48)","v":0},2,1]
[10874,"Acorn Woodpecker",{"$f":"SUM(RawData!C49:C49)","v":0},{"$f":"SUM(RawData!D49:M49)","v":0},{"$f":"SUM(RawData!N49:N49)","v":0},{"$f":"RawData!O49+SUM(RawData!T49:X49)","v":0},{"$f":"SUM(RawData!P49:S49)","v":0},{"$f":"SUM(RawData!Y49:AB49)","v":1},{"$f":"RawData!AC49","v":0},{"$f":"RawData!AE49+SUM(RawData!AJ49:AL49)","v":0},{"$f":"SUM(RawData!AF49:AG49)","v":5},{"$f":"SUM(RawData!AH49:AI49)","v":0},{"$f":"RawData!AM49","v":1},{"$f":"RawData!AN49","v":0},{"$f":"SUM(RawData!AO49:AP49)","v":0},3,1]
[10904,"Gila Woodpecker",{"$f":"SUM(RawData!C50:C50)","v":0},{"$f":"SUM(RawData!D50:M50)","v":16},{"$f":"SUM(RawData!N50:N50)","v":0},{"$f":"RawData!O50+SUM(RawData!T50:X50)","v":1},{"$f":"SUM(RawData!P50:S50)","v":5},{"$f":"SUM(RawData!Y50:AB50)","v":0},{"$f":"RawData!AC50","v":0},{"$f":"RawData!AE50+SUM(RawData!AJ50:AL50)","v":0},{"$f":"SUM(RawData!AF50:AG50)","v":0},{"$f":"SUM(RawData!AH50:AI50)","v":0},{"$f":"RawData!AM50","v":0},{"$f":"RawData!AN50","v":0},{"$f":"SUM(RawData!AO50:AP50)","v":0},3,1]
[11137,"Ladder-backed Woodpecker",{"$f":"SUM(RawData!C51:C51)","v":0},{"$f":"SUM(RawData!D51:M51)","v":0},{"$f":"SUM(RawData!N51:N51)","v":0},{"$f":"RawData!O51+SUM(RawData!T51:X51)","v":1},{"$f":"SUM(RawData!P51:S51)","v":2},{"$f":"SUM(RawData!Y51:AB51)","v":0},{"$f":"RawData!AC51","v":0},{"$f":"RawData!AE51+SUM(RawData!AJ51:AL51)","v":0},{"$f":"SUM(RawData!AF51:AG51)","v":0},{"$f":"SUM(RawData!AH51:AI51)","v":0},{"$f":"RawData!AM51","v":0},{"$f":"RawData!AN51","v":0},{"$f":"SUM(RawData!AO51:AP51)","v":0},2,1]
[11164,"Hairy Woodpecker",{"$f":"SUM(RawData!C52:C52)","v":0},{"$f":"SUM(RawData!D52:M52)","v":0},{"$f":"SUM(RawData!N52:N52)","v":0},{"$f":"RawData!O52+SUM(RawData!T52:X52)","v":0},{"$f":"SUM(RawData!P52:S52)","v":0},{"$f":"SUM(RawData!Y52:AB52)","v":0},{"$f":"RawData!AC52","v":0},{"$f":"RawData!AE52+SUM(RawData!AJ52:AL52)","v":1},{"$f":"SUM(RawData!AF52:AG52)","v":0},{"$f":"SUM(RawData!AH52:AI52)","v":0},{"$f":"RawData!AM52","v":0},{"$f":"RawData!AN52","v":0},{"$f":"SUM(RawData!AO52:AP52)","v":0},1,1]
[11180,"Arizona Woodpecker",{"$f":"SUM(RawData!C53:C53)","v":0},{"$f":"SUM(RawData!D53:M53)","v":0},{"$f":"SUM(RawData!N53:N53)","v":0},{"$f":"RawData!O53+SUM(RawData!T53:X53)","v":0},{"$f":"SUM(RawData!P53:S53)","v":0},{"$f":"SUM(RawData!Y53:AB53)","v":1},{"$f":"RawData!AC53","v":0},{"$f":"RawData!AE53+SUM(RawData!AJ53:AL53)","v":0},{"$f":"SUM(RawData!AF53:AG53)","v":1},{"$f":"SUM(RawData!AH53:AI53)","v":0},{"$f":"RawData!AM53","v":1},{"$f":"RawData!AN53","v":0},{"$f":"SUM(RawData!AO53:AP53)","v":0},3,1]
[11308,"Northern Flicker",{"$f":"SUM(RawData!C54:C54)","v":0},{"$f":"SUM(RawData!D54:M54)","v":0},{"$f":"SUM(RawData!N54:N54)","v":0},{"$f":"RawData!O54+SUM(RawData!T54:X54)","v":0},{"$f":"SUM(RawData!P54:S54)","v":0},{"$f":"SUM(RawData!Y54:AB54)","v":0},{"$f":"RawData!AC54","v":0},{"$f":"RawData!AE54+SUM(RawData!AJ54:AL54)","v":1},{"$f":"SUM(RawData!AF54:AG54)","v":0},{"$f":"SUM(RawData!AH54:AI54)","v":0},{"$f":"RawData!AM54","v":0},{"$f":"RawData!AN54","v":0},{"$f":"SUM(RawData!AO54:AP54)","v":0},1,1]
[11581.24,"Crested Caracara",{"$f":"SUM(RawData!C55:C55)","v":0},{"$f":"SUM(RawData!D55:M55)","v":2},{"$f":"SUM(RawData!N55:N55)","v":0},{"$f":"RawData!O55+SUM(RawData!T55:X55)","v":0},{"$f":"SUM(RawData!P55:S55)","v":0},{"$f":"SUM(RawData!Y55:AB55)","v":0},{"$f":"RawData!AC55","v":0},{"$f":"RawData!AE55+SUM(RawData!AJ55:AL55)","v":0},{"$f":"SUM(RawData!AF55:AG55)","v":0},{"$f":"SUM(RawData!AH55:AI55)","v":0},{"$f":"RawData!AM55","v":0},{"$f":"RawData!AN55","v":0},{"$f":"SUM(RawData!AO55:AP55)","v":0},1,1]
[13804,"Northern Beardless-Tyrannulet",{"$f":"SUM(RawData!C56:C56)","v":0},{"$f":"SUM(RawData!D56:M56)","v":0},{"$f":"SUM(RawData!N56:N56)","v":0},{"$f":"RawData!O56+SUM(RawData!T56:X56)","v":0},{"$f":"SUM(RawData!P56:S56)","v":2},{"$f":"SUM(RawData!Y56:AB56)","v":0},{"$f":"RawData!AC56","v":0},{"$f":"RawData!AE56+SUM(RawData!AJ56:AL56)","v":0},{"$f":"SUM(RawData!AF56:AG56)","v":0},{"$f":"SUM(RawData!AH56:AI56)","v":0},{"$f":"RawData!AM56","v":0},{"$f":"RawData!AN56","v":0},{"$f":"SUM(RawData!AO56:AP56)","v":1},2,1]
[14509,"Tufted Flycatcher",{"$f":"SUM(RawData!C57:C57)","v":0},{"$f":"SUM(RawData!D57:M57)","v":0},{"$f":"SUM(RawData!N57:N57)","v":0},{"$f":"RawData!O57+SUM(RawData!T57:X57)","v":0},{"$f":"SUM(RawData!P57:S57)","v":0},{"$f":"SUM(RawData!Y57:AB57)","v":0},{"$f":"RawData!AC57","v":2},{"$f":"RawData!AE57+SUM(RawData!AJ57:AL57)","v":0},{"$f":"SUM(RawData!AF57:AG57)","v":0},{"$f":"SUM(RawData!AH57:AI57)","v":0},{"$f":"RawData!AM57","v":0},{"$f":"RawData!AN57","v":0},{"$f":"SUM(RawData!AO57:AP57)","v":0},1,1]
[14517,"Greater Pewee",{"$f":"SUM(RawData!C58:C58)","v":0},{"$f":"SUM(RawData!D58:M58)","v":0},{"$f":"SUM(RawData!N58:N58)","v":0},{"$f":"RawData!O58+SUM(RawData!T58:X58)","v":0},{"$f":"SUM(RawData!P58:S58)","v":0},{"$f":"SUM(RawData!Y58:AB58)","v":1},{"$f":"RawData!AC58","v":0},{"$f":"RawData!AE58+SUM(RawData!AJ58:AL58)","v":1},{"$f":"SUM(RawData!AF58:AG58)","v":0},{"$f":"SUM(RawData!AH58:AI58)","v":0},{"$f":"RawData!AM58","v":0},{"$f":"RawData!AN58","v":0},{"$f":"SUM(RawData!AO58:AP58)","v":0},2,1]
[14529,"Western Wood-Pewee",{"$f":"SUM(RawData!C59:C59)","v":0},{"$f":"SUM(RawData!D59:M59)","v":0},{"$f":"SUM(RawData!N59:N59)","v":0},{"$f":"RawData!O59+SUM(RawData!T59:X59)","v":0},{"$f":"SUM(RawData!P59:S59)","v":3},{"$f":"SUM(RawData!Y59:AB59)","v":2},{"$f":"RawData!AC59","v":1},{"$f":"RawData!AE59+SUM(RawData!AJ59:AL59)","v":2},{"$f":"SUM(RawData!AF59:AG59)","v":1},{"$f":"SUM(RawData!AH59:AI59)","v":0},{"$f":"RawData!AM59","v":0},{"$f":"RawData!AN59","v":0},{"$f":"SUM(RawData!AO59:AP59)","v":1},6,1]
[14604,"Cordilleran Flycatcher",{"$f":"SUM(RawData!C60:C60)","v":0},{"$f":"SUM(RawData!D60:M60)","v":0},{"$f":"SUM(RawData!N60:N60)","v":0},{"$f":"RawData!O60+SUM(RawData!T60:X60)","v":0},{"$f":"SUM(RawData!P60:S60)","v":0},{"$f":"SUM(RawData!Y60:AB60)","v":0},{"$f":"RawData!AC60","v":1},{"$f":"RawData!AE60+SUM(RawData!AJ60:AL60)","v":6},{"$f":"SUM(RawData!AF60:AG60)","v":0},{"$f":"SUM(RawData!AH60:AI60)","v":0},{"$f":"RawData!AM60","v":0},{"$f":"RawData!AN60","v":0},{"$f":"SUM(RawData!AO60:AP60)","v":0},2,1]
[14607,"Pacific-slope/Cordilleran Flycatcher (Western Flycatcher)",{"$f":"SUM(RawData!C61:C61)","v":0},{"$f":"SUM(RawData!D61:M61)","v":1},{"$f":"SUM(RawData!N61:N61)","v":0},{"$f":"RawData!O61+SUM(RawData!T61:X61)","v":0},{"$f":"SUM(RawData!P61:S61)","v":0},{"$f":"SUM(RawData!Y61:AB61)","v":0},{"$f":"RawData!AC61","v":0},{"$f":"RawData!AE61+SUM(RawData!AJ61:AL61)","v":0},{"$f":"SUM(RawData!AF61:AG61)","v":0},{"$f":"SUM(RawData!AH61:AI61)","v":0},{"$f":"RawData!AM61","v":0},{"$f":"RawData!AN61","v":0},{"$f":"SUM(RawData!AO61:AP61)","v":0},1,0]
[14612,"Buff-breasted Flycatcher",{"$f":"SUM(RawData!C62:C62)","v":0},{"$f":"SUM(RawData!D62:M62)","v":0},{"$f":"SUM(RawData!N62:N62)","v":0},{"$f":"RawData!O62+SUM(RawData!T62:X62)","v":0},{"$f":"SUM(RawData!P62:S62)","v":0},{"$f":"SUM(RawData!Y62:AB62)","v":6},{"$f":"RawData!AC62","v":0},{"$f":"RawData!AE62+SUM(RawData!AJ62:AL62)","v":0},{"$f":"SUM(RawData!AF62:AG62)","v":0},{"$f":"SUM(RawData!AH62:AI62)","v":0},{"$f":"RawData!AM62","v":0},{"$f":"RawData!AN62","v":0},{"$f":"SUM(RawData!AO62:AP62)","v":0},1,1]
[14621,"Black Phoebe",{"$f":"SUM(RawData!C63:C63)","v":0},{"$f":"SUM(RawData!D63:M63)","v":0},{"$f":"SUM(RawData!N63:N63)","v":0},{"$f":"RawData!O63+SUM(RawData!T63:X63)","v":1},{"$f":"SUM(RawData!P63:S63)","v":0},{"$f":"SUM(RawData!Y63:AB63)","v":0},{"$f":"RawData!AC63","v":0},{"$f":"RawData!AE63+SUM(RawData!AJ63:AL63)","v":0},{"$f":"SUM(RawData!AF63:AG63)","v":0},{"$f":"SUM(RawData!AH63:AI63)","v":0},{"$f":"RawData!AM63","v":0},{"$f":"RawData!AN63","v":0},{"$f":"SUM(RawData!AO63:AP63)","v":0},1,1]
[14633,"Say's Phoebe",{"$f":"SUM(RawData!C64:C64)","v":0},{"$f":"SUM(RawData!D64:M64)","v":0},{"$f":"SUM(RawData!N64:N64)","v":0},{"$f":"RawData!O64+SUM(RawData!T64:X64)","v":0},{"$f":"SUM(RawData!P64:S64)","v":0},{"$f":"SUM(RawData!Y64:AB64)","v":0},{"$f":"RawData!AC64","v":0},{"$f":"RawData!AE64+SUM(RawData!AJ64:AL64)","v":0},{"$f":"SUM(RawData!AF64:AG64)","v":1},{"$f":"SUM(RawData!AH64:AI64)","v":0},{"$f":"RawData!AM64","v":0},{"$f":"RawData!AN64","v":0},{"$f":"SUM(RawData!AO64:AP64)","v":0},1,1]
[14637,"Vermilion Flycatcher",{"$f":"SUM(RawData!C65:C65)","v":0},{"$f":"SUM(RawData!D65:M65)","v":0},{"$f":"SUM(RawData!N65:N65)","v":2},{"$f":"RawData!O65+SUM(RawData!T65:X65)","v":3},{"$f":"SUM(RawData!P65:S65)","v":5},{"$f":"SUM(RawData!Y65:AB65)","v":0},{"$f":"RawData!AC65","v":0},{"$f":"RawData!AE65+SUM(RawData!AJ65:AL65)","v":0},{"$f":"SUM(RawData!AF65:AG65)","v":0},{"$f":"SUM(RawData!AH65:AI65)","v":0},{"$f":"RawData!AM65","v":0},{"$f":"RawData!AN65","v":1},{"$f":"SUM(RawData!AO65:AP65)","v":2},5,1]
[14887,"Dusky-capped Flycatcher",{"$f":"SUM(RawData!C66:C66)","v":0},{"$f":"SUM(RawData!D66:M66)","v":0},{"$f":"SUM(RawData!N66:N66)","v":0},{"$f":"RawData!O66+SUM(RawData!T66:X66)","v":1},{"$f":"SUM(RawData!P66:S66)","v":5},{"$f":"SUM(RawData!Y66:AB66)","v":2},{"$f":"RawData!AC66","v":0},{"$f":"RawData!AE66+SUM(RawData!AJ66:AL66)","v":0},{"$f":"SUM(RawData!AF66:AG66)","v":2},{"$f":"SUM(RawData!AH66:AI66)","v":0},{"$f":"RawData!AM66","v":1},{"$f":"RawData!AN66","v":0},{"$f":"SUM(RawData!AO66:AP66)","v":0},5,1]
[14921,"Ash-throated Flycatcher",{"$f":"SUM(RawData!C67:C67)","v":0},{"$f":"SUM(RawData!D67:M67)","v":3},{"$f":"SUM(RawData!N67:N67)","v":2},{"$f":"RawData!O67+SUM(RawData!T67:X67)","v":1},{"$f":"SUM(RawData!P67:S67)","v":1},{"$f":"SUM(RawData!Y67:AB67)","v":0},{"$f":"RawData!AC67","v":0},{"$f":"RawData!AE67+SUM(RawData!AJ67:AL67)","v":0},{"$f":"SUM(RawData!AF67:AG67)","v":0},{"$f":"SUM(RawData!AH67:AI67)","v":0},{"$f":"RawData!AM67","v":0},{"$f":"RawData!AN67","v":1},{"$f":"SUM(RawData!AO67:AP67)","v":1},6,1]
[14929,"Brown-crested Flycatcher",{"$f":"SUM(RawData!C68:C68)","v":0},{"$f":"SUM(RawData!D68:M68)","v":2},{"$f":"SUM(RawData!N68:N68)","v":0},{"$f":"RawData!O68+SUM(RawData!T68:X68)","v":1},{"$f":"SUM(RawData!P68:S68)","v":3},{"$f":"SUM(RawData!Y68:AB68)","v":0},{"$f":"RawData!AC68","v":0},{"$f":"RawData!AE68+SUM(RawData!AJ68:AL68)","v":0},{"$f":"SUM(RawData!AF68:AG68)","v":0},{"$f":"SUM(RawData!AH68:AI68)","v":0},{"$f":"RawData!AM68","v":0},{"$f":"RawData!AN68","v":0},{"$f":"SUM(RawData!AO68:AP68)","v":0},3,1]
[14930,"Brown-crested Flycatcher (Arizona)",{"$f":"SUM(RawData!C69:C69)","v":0},{"$f":"SUM(RawData!D69:M69)","v":0},{"$f":"SUM(RawData!N69:N69)","v":0},{"$f":"RawData!O69+SUM(RawData!T69:X69)","v":0},{"$f":"SUM(RawData!P69:S69)","v":4},{"$f":"SUM(RawData!Y69:AB69)","v":0},{"$f":"RawData!AC69","v":0},{"$f":"RawData!AE69+SUM(RawData!AJ69:AL69)","v":0},{"$f":"SUM(RawData!AF69:AG69)","v":0},{"$f":"SUM(RawData!AH69:AI69)","v":0},{"$f":"RawData!AM69","v":0},{"$f":"RawData!AN69","v":0},{"$f":"SUM(RawData!AO69:AP69)","v":0},1,0]
[15038,"Tropical Kingbird",{"$f":"SUM(RawData!C70:C70)","v":0},{"$f":"SUM(RawData!D70:M70)","v":0},{"$f":"SUM(RawData!N70:N70)","v":0},{"$f":"RawData!O70+SUM(RawData!T70:X70)","v":0},{"$f":"SUM(RawData!P70:S70)","v":2},{"$f":"SUM(RawData!Y70:AB70)","v":0},{"$f":"RawData!AC70","v":0},{"$f":"RawData!AE70+SUM(RawData!AJ70:AL70)","v":0},{"$f":"SUM(RawData!AF70:AG70)","v":0},{"$f":"SUM(RawData!AH70:AI70)","v":0},{"$f":"RawData!AM70","v":0},{"$f":"RawData!AN70","v":0},{"$f":"SUM(RawData!AO70:AP70)","v":0},1,1]
[15045,"Cassin's Kingbird",{"$f":"SUM(RawData!C71:C71)","v":0},{"$f":"SUM(RawData!D71:M71)","v":0},{"$f":"SUM(RawData!N71:N71)","v":0},{"$f":"RawData!O71+SUM(RawData!T71:X71)","v":0},{"$f":"SUM(RawData!P71:S71)","v":2},{"$f":"SUM(RawData!Y71:AB71)","v":0},{"$f":"RawData!AC71","v":0},{"$f":"RawData!AE71+SUM(RawData!AJ71:AL71)","v":0},{"$f":"SUM(RawData!AF71:AG71)","v":0},{"$f":"SUM(RawData!AH71:AI71)","v":2},{"$f":"RawData!AM71","v":0},{"$f":"RawData!AN71","v":0},{"$f":"SUM(RawData!AO71:AP71)","v":0},{"$f":"COUNTIF(B70:O70,\">0\")","v":2},1]
[15048,"Thick-billed Kingbird",{"$f":"SUM(RawData!C72:C72)","v":0},{"$f":"SUM(RawData!D72:M72)","v":0},{"$f":"SUM(RawData!N72:N72)","v":0},{"$f":"RawData!O72+SUM(RawData!T72:X72)","v":2},{"$f":"SUM(RawData!P72:S72)","v":2},{"$f":"SUM(RawData!Y72:AB72)","v":0},{"$f":"RawData!AC72","v":0},{"$f":"RawData!AE72+SUM(RawData!AJ72:AL72)","v":0},{"$f":"SUM(RawData!AF72:AG72)","v":0},{"$f":"SUM(RawData!AH72:AI72)","v":0},{"$f":"RawData!AM72","v":0},{"$f":"RawData!AN72","v":0},{"$f":"SUM(RawData!AO72:AP72)","v":0},2,1]
[15051,"Western Kingbird",{"$f":"SUM(RawData!C73:C73)","v":0},{"$f":"SUM(RawData!D73:M73)","v":0},{"$f":"SUM(RawData!N73:N73)","v":0},{"$f":"RawData!O73+SUM(RawData!T73:X73)","v":2},{"$f":"SUM(RawData!P73:S73)","v":0},{"$f":"SUM(RawData!Y73:AB73)","v":0},{"$f":"RawData!AC73","v":0},{"$f":"RawData!AE73+SUM(RawData!AJ73:AL73)","v":0},{"$f":"SUM(RawData!AF73:AG73)","v":0},{"$f":"SUM(RawData!AH73:AI73)","v":0},{"$f":"RawData!AM73","v":0},{"$f":"RawData!AN73","v":0},{"$f":"SUM(RawData!AO73:AP73)","v":0},1,1]
[15461,"Rose-throated Becard",{"$f":"SUM(RawData!C74:C74)","v":0},{"$f":"SUM(RawData!D74:M74)","v":0},{"$f":"SUM(RawData!N74:N74)","v":0},{"$f":"RawData!O74+SUM(RawData!T74:X74)","v":0},{"$f":"SUM(RawData!P74:S74)","v":2},{"$f":"SUM(RawData!Y74:AB74)","v":0},{"$f":"RawData!AC74","v":0},{"$f":"RawData!AE74+SUM(RawData!AJ74:AL74)","v":0},{"$f":"SUM(RawData!AF74:AG74)","v":0},{"$f":"SUM(RawData!AH74:AI74)","v":0},{"$f":"RawData!AM74","v":0},{"$f":"RawData!AN74","v":0},{"$f":"SUM(RawData!AO74:AP74)","v":0},1,1]
[17778,"Bell's Vireo",{"$f":"SUM(RawData!C75:C75)","v":0},{"$f":"SUM(RawData!D75:M75)","v":0},{"$f":"SUM(RawData!N75:N75)","v":0},{"$f":"RawData!O75+SUM(RawData!T75:X75)","v":3},{"$f":"SUM(RawData!P75:S75)","v":9},{"$f":"SUM(RawData!Y75:AB75)","v":0},{"$f":"RawData!AC75","v":0},{"$f":"RawData!AE75+SUM(RawData!AJ75:AL75)","v":0},{"$f":"SUM(RawData!AF75:AG75)","v":0},{"$f":"SUM(RawData!AH75:AI75)","v":0},{"$f":"RawData!AM75","v":0},{"$f":"RawData!AN75","v":0},{"$f":"SUM(RawData!AO75:AP75)","v":1},3,1]
[17786.5,"Hutton's Vireo",{"$f":"SUM(RawData!C76:C76)","v":0},{"$f":"SUM(RawData!D76:M76)","v":0},{"$f":"SUM(RawData!N76:N76)","v":0},{"$f":"RawData!O76+SUM(RawData!T76:X76)","v":0},{"$f":"SUM(RawData!P76:S76)","v":0},{"$f":"SUM(RawData!Y76:AB76)","v":0},{"$f":"RawData!AC76","v":0},{"$f":"RawData!AE76+SUM(RawData!AJ76:AL76)","v":0},{"$f":"SUM(RawData!AF76:AG76)","v":0},{"$f":"SUM(RawData!AH76:AI76)","v":0},{"$f":"RawData!AM76","v":2},{"$f":"RawData!AN76","v":0},{"$f":"SUM(RawData!AO76:AP76)","v":0},1,1]
[17804.2,"Plumbeous Vireo",{"$f":"SUM(RawData!C77:C77)","v":0},{"$f":"SUM(RawData!D77:M77)","v":0},{"$f":"SUM(RawData!N77:N77)","v":0},{"$f":"RawData!O77+SUM(RawData!T77:X77)","v":0},{"$f":"SUM(RawData!P77:S77)","v":0},{"$f":"SUM(RawData!Y77:AB77)","v":2},{"$f":"RawData!AC77","v":0},{"$f":"RawData!AE77+SUM(RawData!AJ77:AL77)","v":0},{"$f":"SUM(RawData!AF77:AG77)","v":2},{"$f":"SUM(RawData!AH77:AI77)","v":0},{"$f":"RawData!AM77","v":0},{"$f":"RawData!AN77","v":0},{"$f":"SUM(RawData!AO77:AP77)","v":0},2,1]
[18816,"Steller's Jay",{"$f":"SUM(RawData!C78:C78)","v":0},{"$f":"SUM(RawData!D78:M78)","v":0},{"$f":"SUM(RawData!N78:N78)","v":0},{"$f":"RawData!O78+SUM(RawData!T78:X78)","v":0},{"$f":"SUM(RawData!P78:S78)","v":0},{"$f":"SUM(RawData!Y78:AB78)","v":3},{"$f":"RawData!AC78","v":0},{"$f":"RawData!AE78+SUM(RawData!AJ78:AL78)","v":9},{"$f":"SUM(RawData!AF78:AG78)","v":1},{"$f":"SUM(RawData!AH78:AI78)","v":0},{"$f":"RawData!AM78","v":0},{"$f":"RawData!AN78","v":0},{"$f":"SUM(RawData!AO78:AP78)","v":0},3,1]
[18858,"Mexican Jay",{"$f":"SUM(RawData!C79:C79)","v":0},{"$f":"SUM(RawData!D79:M79)","v":0},{"$f":"SUM(RawData!N79:N79)","v":0},{"$f":"RawData!O79+SUM(RawData!T79:X79)","v":0},{"$f":"SUM(RawData!P79:S79)","v":0},{"$f":"SUM(RawData!Y79:AB79)","v":0},{"$f":"RawData!AC79","v":0},{"$f":"RawData!AE79+SUM(RawData!AJ79:AL79)","v":0},{"$f":"SUM(RawData!AF79:AG79)","v":1},{"$f":"SUM(RawData!AH79:AI79)","v":0},{"$f":"RawData!AM79","v":5},{"$f":"RawData!AN79","v":0},{"$f":"SUM(RawData!AO79:AP79)","v":0},2,1]
[19134,"Common Raven",{"$f":"SUM(RawData!C80:C80)","v":0},{"$f":"SUM(RawData!D80:M80)","v":2},{"$f":"SUM(RawData!N80:N80)","v":0},{"$f":"RawData!O80+SUM(RawData!T80:X80)","v":3},{"$f":"SUM(RawData!P80:S80)","v":3},{"$f":"SUM(RawData!Y80:AB80)","v":0},{"$f":"RawData!AC80","v":0},{"$f":"RawData!AE80+SUM(RawData!AJ80:AL80)","v":0},{"$f":"SUM(RawData!AF80:AG80)","v":0},{"$f":"SUM(RawData!AH80:AI80)","v":0},{"$f":"RawData!AM80","v":2},{"$f":"RawData!AN80","v":0},{"$f":"SUM(RawData!AO80:AP80)","v":0},4,1]
[19981,"Violet-green Swallow",{"$f":"SUM(RawData!C81:C81)","v":0},{"$f":"SUM(RawData!D81:M81)","v":0},{"$f":"SUM(RawData!N81:N81)","v":0},{"$f":"RawData!O81+SUM(RawData!T81:X81)","v":0},{"$f":"SUM(RawData!P81:S81)","v":0},{"$f":"SUM(RawData!Y81:AB81)","v":1},{"$f":"RawData!AC81","v":0},{"$f":"RawData!AE81+SUM(RawData!AJ81:AL81)","v":10},{"$f":"SUM(RawData!AF81:AG81)","v":0},{"$f":"SUM(RawData!AH81:AI81)","v":0},{"$f":"RawData!AM81","v":0},{"$f":"RawData!AN81","v":0},{"$f":"SUM(RawData!AO81:AP81)","v":0},2,1]
[20037,"Barn Swallow",{"$f":"SUM(RawData!C82:C82)","v":0},{"$f":"SUM(RawData!D82:M82)","v":2},{"$f":"SUM(RawData!N82:N82)","v":0},{"$f":"RawData!O82+SUM(RawData!T82:X82)","v":0},{"$f":"SUM(RawData!P82:S82)","v":2},{"$f":"SUM(RawData!Y82:AB82)","v":0},{"$f":"RawData!AC82","v":0},{"$f":"RawData!AE82+SUM(RawData!AJ82:AL82)","v":0},{"$f":"SUM(RawData!AF82:AG82)","v":0},{"$f":"SUM(RawData!AH82:AI82)","v":0},{"$f":"RawData!AM82","v":0},{"$f":"RawData!AN82","v":0},{"$f":"SUM(RawData!AO82:AP82)","v":0},2,1]
[20470,"Bridled Titmouse",{"$f":"SUM(RawData!C83:C83)","v":0},{"$f":"SUM(RawData!D83:M83)","v":0},{"$f":"SUM(RawData!N83:N83)","v":0},{"$f":"RawData!O83+SUM(RawData!T83:X83)","v":0},{"$f":"SUM(RawData!P83:S83)","v":3},{"$f":"SUM(RawData!Y83:AB83)","v":0},{"$f":"RawData!AC83","v":0},{"$f":"RawData!AE83+SUM(RawData!AJ83:AL83)","v":0},{"$f":"SUM(RawData!AF83:AG83)","v":2},{"$f":"SUM(RawData!AH83:AI83)","v":1},{"$f":"RawData!AM83","v":1},{"$f":"RawData!AN83","v":0},{"$f":"SUM(RawData!AO83:AP83)","v":0},4,1]
[20501,"Verdin",{"$f":"SUM(RawData!C84:C84)","v":1},{"$f":"SUM(RawData!D84:M84)","v":1},{"$f":"SUM(RawData!N84:N84)","v":0},{"$f":"RawData!O84+SUM(RawData!T84:X84)","v":4},{"$f":"SUM(RawData!P84:S84)","v":3},{"$f":"SUM(RawData!Y84:AB84)","v":0},{"$f":"RawData!AC84","v":0},{"$f":"RawData!AE84+SUM(RawData!AJ84:AL84)","v":0},{"$f":"SUM(RawData!AF84:AG84)","v":0},{"$f":"SUM(RawData!AH84:AI84)","v":0},{"$f":"RawData!AM84","v":0},{"$f":"RawData!AN84","v":2},{"$f":"SUM(RawData!AO84:AP84)","v":0},5,1]
[20761,"White-breasted Nuthatch",{"$f":"SUM(RawData!C85:C85)","v":0},{"$f":"SUM(RawData!D85:M85)","v":0},{"$f":"SUM(RawData!N85:N85)","v":0},{"$f":"RawData!O85+SUM(RawData!T85:X85)","v":0},{"$f":"SUM(RawData!P85:S85)","v":3},{"$f":"SUM(RawData!Y85:AB85)","v":0},{"$f":"RawData!AC85","v":0},{"$f":"RawData!AE85+SUM(RawData!AJ85:AL85)","v":0},{"$f":"SUM(RawData!AF85:AG85)","v":0},{"$f":"SUM(RawData!AH85:AI85)","v":0},{"$f":"RawData!AM85","v":0},{"$f":"RawData!AN85","v":0},{"$f":"SUM(RawData!AO85:AP85)","v":0},1,0]
[20763,"White-breasted Nuthatch (Interior West)",{"$f":"SUM(RawData!C86:C86)","v":0},{"$f":"SUM(RawData!D86:M86)","v":0},{"$f":"SUM(RawData!N86:N86)","v":0},{"$f":"RawData!O86+SUM(RawData!T86:X86)","v":1},{"$f":"SUM(RawData!P86:S86)","v":0},{"$f":"SUM(RawData!Y86:AB86)","v":0},{"$f":"RawData!AC86","v":0},{"$f":"RawData!AE86+SUM(RawData!AJ86:AL86)","v":0},{"$f":"SUM(RawData!AF86:AG86)","v":1},{"$f":"SUM(RawData!AH86:AI86)","v":1},{"$f":"RawData!AM86","v":0},{"$f":"RawData!AN86","v":0},{"$f":"SUM(RawData!AO86:AP86)","v":0},3,1]
[20773,"Pygmy Nuthatch",{"$f":"SUM(RawData!C87:C87)","v":0},{"$f":"SUM(RawData!D87:M87)","v":0},{"$f":"SUM(RawData!N87:N87)","v":0},{"$f":"RawData!O87+SUM(RawData!T87:X87)","v":0},{"$f":"SUM(RawData!P87:S87)","v":0},{"$f":"SUM(RawData!Y87:AB87)","v":0},{"$f":"RawData!AC87","v":0},{"$f":"RawData!AE87+SUM(RawData!AJ87:AL87)","v":1},{"$f":"SUM(RawData!AF87:AG87)","v":0},{"$f":"SUM(RawData!AH87:AI87)","v":0},{"$f":"RawData!AM87","v":0},{"$f":"RawData!AN87","v":0},{"$f":"SUM(RawData!AO87:AP87)","v":0},1,1]
[20846,"Brown Creeper",{"$f":"SUM(RawData!C88:C88)","v":0},{"$f":"SUM(RawData!D88:M88)","v":0},{"$f":"SUM(RawData!N88:N88)","v":0},{"$f":"RawData!O88+SUM(RawData!T88:X88)","v":0},{"$f":"SUM(RawData!P88:S88)","v":0},{"$f":"SUM(RawData!Y88:AB88)","v":2},{"$f":"RawData!AC88","v":0},{"$f":"RawData!AE88+SUM(RawData!AJ88:AL88)","v":0},{"$f":"SUM(RawData!AF88:AG88)","v":0},{"$f":"SUM(RawData!AH88:AI88)","v":0},{"$f":"RawData!AM88","v":0},{"$f":"RawData!AN88","v":0},{"$f":"SUM(RawData!AO88:AP88)","v":0},1,1]
[20904,"Canyon Wren",{"$f":"SUM(RawData!C89:C89)","v":0},{"$f":"SUM(RawData!D89:M89)","v":0},{"$f":"SUM(RawData!N89:N89)","v":0},{"$f":"RawData!O89+SUM(RawData!T89:X89)","v":0},{"$f":"SUM(RawData!P89:S89)","v":0},{"$f":"SUM(RawData!Y89:AB89)","v":0},{"$f":"RawData!AC89","v":0},{"$f":"RawData!AE89+SUM(RawData!AJ89:AL89)","v":0},{"$f":"SUM(RawData!AF89:AG89)","v":1},{"$f":"SUM(RawData!AH89:AI89)","v":0},{"$f":"RawData!AM89","v":1},{"$f":"RawData!AN89","v":0},{"$f":"SUM(RawData!AO89:AP89)","v":0},2,1]
[21138,"House Wren",{"$f":"SUM(RawData!C90:C90)","v":0},{"$f":"SUM(RawData!D90:M90)","v":0},{"$f":"SUM(RawData!N90:N90)","v":0},{"$f":"RawData!O90+SUM(RawData!T90:X90)","v":0},{"$f":"SUM(RawData!P90:S90)","v":0},{"$f":"SUM(RawData!Y90:AB90)","v":0},{"$f":"RawData!AC90","v":0},{"$f":"RawData!AE90+SUM(RawData!AJ90:AL90)","v":4},{"$f":"SUM(RawData!AF90:AG90)","v":4},{"$f":"SUM(RawData!AH90:AI90)","v":0},{"$f":"RawData!AM90","v":0},{"$f":"RawData!AN90","v":0},{"$f":"SUM(RawData!AO90:AP90)","v":0},2,1]
[21151,"House Wren (Brown-throated)",{"$f":"SUM(RawData!C91:C91)","v":0},{"$f":"SUM(RawData!D91:M91)","v":0},{"$f":"SUM(RawData!N91:N91)","v":0},{"$f":"RawData!O91+SUM(RawData!T91:X91)","v":0},{"$f":"SUM(RawData!P91:S91)","v":0},{"$f":"SUM(RawData!Y91:AB91)","v":0},{"$f":"RawData!AC91","v":0},{"$f":"RawData!AE91+SUM(RawData!AJ91:AL91)","v":0},{"$f":"SUM(RawData!AF91:AG91)","v":1},{"$f":"SUM(RawData!AH91:AI91)","v":0},{"$f":"RawData!AM91","v":0},{"$f":"RawData!AN91","v":0},{"$f":"SUM(RawData!AO91:AP91)","v":0},1,0]
[21330,"Bewick's Wren",{"$f":"SUM(RawData!C92:C92)","v":0},{"$f":"SUM(RawData!D92:M92)","v":0},{"$f":"SUM(RawData!N92:N92)","v":0},{"$f":"RawData!O92+SUM(RawData!T92:X92)","v":9},{"$f":"SUM(RawData!P92:S92)","v":7},{"$f":"SUM(RawData!Y92:AB92)","v":1},{"$f":"RawData!AC92","v":0},{"$f":"RawData!AE92+SUM(RawData!AJ92:AL92)","v":0},{"$f":"SUM(RawData!AF92:AG92)","v":0},{"$f":"SUM(RawData!AH92:AI92)","v":0},{"$f":"RawData!AM92","v":0},{"$f":"RawData!AN92","v":0},{"$f":"SUM(RawData!AO92:AP92)","v":1},4,1]
[21345.5,"Cactus Wren",{"$f":"SUM(RawData!C93:C93)","v":3},{"$f":"SUM(RawData!D93:M93)","v":5},{"$f":"SUM(RawData!N93:N93)","v":0},{"$f":"RawData!O93+SUM(RawData!T93:X93)","v":0},{"$f":"SUM(RawData!P93:S93)","v":0},{"$f":"SUM(RawData!Y93:AB93)","v":0},{"$f":"RawData!AC93","v":0},{"$f":"RawData!AE93+SUM(RawData!AJ93:AL93)","v":0},{"$f":"SUM(RawData!AF93:AG93)","v":0},{"$f":"SUM(RawData!AH93:AI93)","v":0},{"$f":"RawData!AM93","v":0},{"$f":"RawData!AN93","v":0},{"$f":"SUM(RawData!AO93:AP93)","v":2},3,1]
[21403,"Blue-gray Gnatcatcher",{"$f":"SUM(RawData!C94:C94)","v":0},{"$f":"SUM(RawData!D94:M94)","v":0},{"$f":"SUM(RawData!N94:N94)","v":0},{"$f":"RawData!O94+SUM(RawData!T94:X94)","v":0},{"$f":"SUM(RawData!P94:S94)","v":0},{"$f":"SUM(RawData!Y94:AB94)","v":1},{"$f":"RawData!AC94","v":0},{"$f":"RawData!AE94+SUM(RawData!AJ94:AL94)","v":0},{"$f":"SUM(RawData!AF94:AG94)","v":0},{"$f":"SUM(RawData!AH94:AI94)","v":0},{"$f":"RawData!AM94","v":0},{"$f":"RawData!AN94","v":0},{"$f":"SUM(RawData!AO94:AP94)","v":0},1,1]
[21415,"Black-tailed Gnatcatcher",{"$f":"SUM(RawData!C95:C95)","v":1},{"$f":"SUM(RawData!D95:M95)","v":0},{"$f":"SUM(RawData!N95:N95)","v":0},{"$f":"RawData!O95+SUM(RawData!T95:X95)","v":0},{"$f":"SUM(RawData!P95:S95)","v":0},{"$f":"SUM(RawData!Y95:AB95)","v":0},{"$f":"RawData!AC95","v":0},{"$f":"RawData!AE95+SUM(RawData!AJ95:AL95)","v":0},{"$f":"SUM(RawData!AF95:AG95)","v":0},{"$f":"SUM(RawData!AH95:AI95)","v":0},{"$f":"RawData!AM95","v":0},{"$f":"RawData!AN95","v":0},{"$f":"SUM(RawData!AO95:AP95)","v":0},1,1]
[24491,"Western Bluebird",{"$f":"SUM(RawData!C96:C96)","v":0},{"$f":"SUM(RawData!D96:M96)","v":0},{"$f":"SUM(RawData!N96:N96)","v":0},{"$f":"RawData!O96+SUM(RawData!T96:X96)","v":0},{"$f":"SUM(RawData!P96:S96)","v":0},{"$f":"SUM(RawData!Y96:AB96)","v":0},{"$f":"RawData!AC96","v":0},{"$f":"RawData!AE96+SUM(RawData!AJ96:AL96)","v":2},{"$f":"SUM(RawData!AF96:AG96)","v":0},{"$f":"SUM(RawData!AH96:AI96)","v":0},{"$f":"RawData!AM96","v":0},{"$f":"RawData!AN96","v":0},{"$f":"SUM(RawData!AO96:AP96)","v":0},1,1]
[24608,"Hermit Thrush",{"$f":"SUM(RawData!C97:C97)","v":0},{"$f":"SUM(RawData!D97:M97)","v":0},{"$f":"SUM(RawData!N97:N97)","v":0},{"$f":"RawData!O97+SUM(RawData!T97:X97)","v":0},{"$f":"SUM(RawData!P97:S97)","v":0},{"$f":"SUM(RawData!Y97:AB97)","v":4},{"$f":"RawData!AC97","v":0},{"$f":"RawData!AE97+SUM(RawData!AJ97:AL97)","v":0},{"$f":"SUM(RawData!AF97:AG97)","v":2},{"$f":"SUM(RawData!AH97:AI97)","v":0},{"$f":"RawData!AM97","v":0},{"$f":"RawData!AN97","v":0},{"$f":"SUM(RawData!AO97:AP97)","v":0},2,1]
[24621,"Catharus sp.",{"$f":"SUM(RawData!C98:C98)","v":0},{"$f":"SUM(RawData!D98:M98)","v":0},{"$f":"SUM(RawData!N98:N98)","v":0},{"$f":"RawData!O98+SUM(RawData!T98:X98)","v":0},{"$f":"SUM(RawData!P98:S98)","v":0},{"$f":"SUM(RawData!Y98:AB98)","v":0},{"$f":"RawData!AC98","v":0},{"$f":"RawData!AE98+SUM(RawData!AJ98:AL98)","v":0},{"$f":"SUM(RawData!AF98:AG98)","v":1},{"$f":"SUM(RawData!AH98:AI98)","v":0},{"$f":"RawData!AM98","v":0},{"$f":"RawData!AN98","v":0},{"$f":"SUM(RawData!AO98:AP98)","v":0},1,0]
[24903,"American Robin",{"$f":"SUM(RawData!C99:C99)","v":0},{"$f":"SUM(RawData!D99:M99)","v":0},{"$f":"SUM(RawData!N99:N99)","v":0},{"$f":"RawData!O99+SUM(RawData!T99:X99)","v":0},{"$f":"SUM(RawData!P99:S99)","v":0},{"$f":"SUM(RawData!Y99:AB99)","v":4},{"$f":"RawData!AC99","v":0},{"$f":"RawData!AE99+SUM(RawData!AJ99:AL99)","v":0},{"$f":"SUM(RawData!AF99:AG99)","v":0},{"$f":"SUM(RawData!AH99:AI99)","v":0},{"$f":"RawData!AM99","v":0},{"$f":"RawData!AN99","v":0},{"$f":"SUM(RawData!AO99:AP99)","v":0},1,1]
[26380,"Curve-billed Thrasher",{"$f":"SUM(RawData!C100:C100)","v":1},{"$f":"SUM(RawData!D100:M100)","v":4},{"$f":"SUM(RawData!N100:N100)","v":0},{"$f":"RawData!O100+SUM(RawData!T100:X100)","v":3},{"$f":"SUM(RawData!P100:S100)","v":0},{"$f":"SUM(RawData!Y100:AB100)","v":0},{"$f":"RawData!AC100","v":0},{"$f":"RawData!AE100+SUM(RawData!AJ100:AL100)","v":0},{"$f":"SUM(RawData!AF100:AG100)","v":0},{"$f":"SUM(RawData!AH100:AI100)","v":1},{"$f":"RawData!AM100","v":0},{"$f":"RawData!AN100","v":0},{"$f":"SUM(RawData!AO100:AP100)","v":1},5,1]
[26464,"Northern Mockingbird",{"$f":"SUM(RawData!C101:C101)","v":0},{"$f":"SUM(RawData!D101:M101)","v":0},{"$f":"SUM(RawData!N101:N101)","v":0},{"$f":"RawData!O101+SUM(RawData!T101:X101)","v":0},{"$f":"SUM(RawData!P101:S101)","v":0},{"$f":"SUM(RawData!Y101:AB101)","v":0},{"$f":"RawData!AC101","v":0},{"$f":"RawData!AE101+SUM(RawData!AJ101:AL101)","v":0},{"$f":"SUM(RawData!AF101:AG101)","v":0},{"$f":"SUM(RawData!AH101:AI101)","v":0},{"$f":"RawData!AM101","v":1},{"$f":"RawData!AN101","v":0},{"$f":"SUM(RawData!AO101:AP101)","v":1},2,1]
[26621,"European Starling",{"$f":"SUM(RawData!C102:C102)","v":0},{"$f":"SUM(RawData!D102:M102)","v":0},{"$f":"SUM(RawData!N102:N102)","v":0},{"$f":"RawData!O102+SUM(RawData!T102:X102)","v":0},{"$f":"SUM(RawData!P102:S102)","v":1},{"$f":"SUM(RawData!Y102:AB102)","v":0},{"$f":"RawData!AC102","v":0},{"$f":"RawData!AE102+SUM(RawData!AJ102:AL102)","v":0},{"$f":"SUM(RawData!AF102:AG102)","v":0},{"$f":"SUM(RawData!AH102:AI102)","v":0},{"$f":"RawData!AM102","v":0},{"$f":"RawData!AN102","v":0},{"$f":"SUM(RawData!AO102:AP102)","v":0},1,1]
[27755,"Phainopepla",{"$f":"SUM(RawData!C103:C103)","v":0},{"$f":"SUM(RawData!D103:M103)","v":0},{"$f":"SUM(RawData!N103:N103)","v":0},{"$f":"RawData!O103+SUM(RawData!T103:X103)","v":3},{"$f":"SUM(RawData!P103:S103)","v":17},{"$f":"SUM(RawData!Y103:AB103)","v":0},{"$f":"RawData!AC103","v":0},{"$f":"RawData!AE103+SUM(RawData!AJ103:AL103)","v":0},{"$f":"SUM(RawData!AF103:AG103)","v":0},{"$f":"SUM(RawData!AH103:AI103)","v":0},{"$f":"RawData!AM103","v":0},{"$f":"RawData!AN103","v":0},{"$f":"SUM(RawData!AO103:AP103)","v":0},2,1]
[27763,"Olive Warbler",{"$f":"SUM(RawData!C104:C104)","v":0},{"$f":"SUM(RawData!D104:M104)","v":0},{"$f":"SUM(RawData!N104:N104)","v":0},{"$f":"RawData!O104+SUM(RawData!T104:X104)","v":0},{"$f":"SUM(RawData!P104:S104)","v":0},{"$f":"SUM(RawData!Y104:AB104)","v":1},{"$f":"RawData!AC104","v":0},{"$f":"RawData!AE104+SUM(RawData!AJ104:AL104)","v":0},{"$f":"SUM(RawData!AF104:AG104)","v":0},{"$f":"SUM(RawData!AH104:AI104)","v":0},{"$f":"RawData!AM104","v":0},{"$f":"RawData!AN104","v":0},{"$f":"SUM(RawData!AO104:AP104)","v":0},1,1]
[27800,"Lucy's Warbler",{"$f":"SUM(RawData!C105:C105)","v":0},{"$f":"SUM(RawData!D105:M105)","v":0},{"$f":"SUM(RawData!N105:N105)","v":4},{"$f":"RawData!O105+SUM(RawData!T105:X105)","v":9},{"$f":"SUM(RawData!P105:S105)","v":4},{"$f":"SUM(RawData!Y105:AB105)","v":0},{"$f":"RawData!AC105","v":0},{"$f":"RawData!AE105+SUM(RawData!AJ105:AL105)","v":0},{"$f":"SUM(RawData!AF105:AG105)","v":0},{"$f":"SUM(RawData!AH105:AI105)","v":0},{"$f":"RawData!AM105","v":0},{"$f":"RawData!AN105","v":1},{"$f":"SUM(RawData!AO105:AP105)","v":3},5,1]
[27804,"Virginia's Warbler",{"$f":"SUM(RawData!C106:C106)","v":0},{"$f":"SUM(RawData!D106:M106)","v":0},{"$f":"SUM(RawData!N106:N106)","v":0},{"$f":"RawData!O106+SUM(RawData!T106:X106)","v":0},{"$f":"SUM(RawData!P106:S106)","v":0},{"$f":"SUM(RawData!Y106:AB106)","v":3},{"$f":"RawData!AC106","v":0},{"$f":"RawData!AE106+SUM(RawData!AJ106:AL106)","v":0},{"$f":"SUM(RawData!AF106:AG106)","v":0},{"$f":"SUM(RawData!AH106:AI106)","v":0},{"$f":"RawData!AM106","v":0},{"$f":"RawData!AN106","v":0},{"$f":"SUM(RawData!AO106:AP106)","v":0},1,1]
[27838,"Common Yellowthroat",{"$f":"SUM(RawData!C107:C107)","v":0},{"$f":"SUM(RawData!D107:M107)","v":0},{"$f":"SUM(RawData!N107:N107)","v":0},{"$f":"RawData!O107+SUM(RawData!T107:X107)","v":0},{"$f":"SUM(RawData!P107:S107)","v":1},{"$f":"SUM(RawData!Y107:AB107)","v":0},{"$f":"RawData!AC107","v":0},{"$f":"RawData!AE107+SUM(RawData!AJ107:AL107)","v":0},{"$f":"SUM(RawData!AF107:AG107)","v":0},{"$f":"SUM(RawData!AH107:AI107)","v":0},{"$f":"RawData!AM107","v":0},{"$f":"RawData!AN107","v":0},{"$f":"SUM(RawData!AO107:AP107)","v":0},1,1]
[27885,"Yellow Warbler",{"$f":"SUM(RawData!C108:C108)","v":0},{"$f":"SUM(RawData!D108:M108)","v":0},{"$f":"SUM(RawData!N108:N108)","v":0},{"$f":"RawData!O108+SUM(RawData!T108:X108)","v":9},{"$f":"SUM(RawData!P108:S108)","v":2},{"$f":"SUM(RawData!Y108:AB108)","v":0},{"$f":"RawData!AC108","v":0},{"$f":"RawData!AE108+SUM(RawData!AJ108:AL108)","v":0},{"$f":"SUM(RawData!AF108:AG108)","v":0},{"$f":"SUM(RawData!AH108:AI108)","v":0},{"$f":"RawData!AM108","v":0},{"$f":"RawData!AN108","v":0},{"$f":"SUM(RawData!AO108:AP108)","v":0},2,1]
[27886,"Yellow Warbler (Northern)",{"$f":"SUM(RawData!C109:C109)","v":0},{"$f":"SUM(RawData!D109:M109)","v":0},{"$f":"SUM(RawData!N109:N109)","v":0},{"$f":"RawData!O109+SUM(RawData!T109:X109)","v":0},{"$f":"SUM(RawData!P109:S109)","v":2},{"$f":"SUM(RawData!Y109:AB109)","v":0},{"$f":"RawData!AC109","v":0},{"$f":"RawData!AE109+SUM(RawData!AJ109:AL109)","v":0},{"$f":"SUM(RawData!AF109:AG109)","v":0},{"$f":"SUM(RawData!AH109:AI109)","v":0},{"$f":"RawData!AM109","v":0},{"$f":"RawData!AN109","v":0},{"$f":"SUM(RawData!AO109:AP109)","v":0},1,0]
[27941,"Yellow-rumped Warbler (Audubon's)",{"$f":"SUM(RawData!C110:C110)","v":0},{"$f":"SUM(RawData!D110:M110)","v":0},{"$f":"SUM(RawData!N110:N110)","v":0},{"$f":"RawData!O110+SUM(RawData!T110:X110)","v":0},{"$f":"SUM(RawData!P110:S110)","v":0},{"$f":"SUM(RawData!Y110:AB110)","v":0},{"$f":"RawData!AC110","v":0},{"$f":"RawData!AE110+SUM(RawData!AJ110:AL110)","v":0},{"$f":"SUM(RawData!AF110:AG110)","v":1},{"$f":"SUM(RawData!AH110:AI110)","v":0},{"$f":"RawData!AM110","v":0},{"$f":"RawData!AN110","v":0},{"$f":"SUM(RawData!AO110:AP110)","v":0},1,1]
[27962,"Grace's Warbler",{"$f":"SUM(RawData!C111:C111)","v":0},{"$f":"SUM(RawData!D111:M111)","v":0},{"$f":"SUM(RawData!N111:N111)","v":0},{"$f":"RawData!O111+SUM(RawData!T111:X111)","v":0},{"$f":"SUM(RawData!P111:S111)","v":0},{"$f":"SUM(RawData!Y111:AB111)","v":9},{"$f":"RawData!AC111","v":3},{"$f":"RawData!AE111+SUM(RawData!AJ111:AL111)","v":0},{"$f":"SUM(RawData!AF111:AG111)","v":0},{"$f":"SUM(RawData!AH111:AI111)","v":0},{"$f":"RawData!AM111","v":0},{"$f":"RawData!AN111","v":0},{"$f":"SUM(RawData!AO111:AP111)","v":0},2,1]
[27968,"Black-throated Gray Warbler",{"$f":"SUM(RawData!C112:C112)","v":0},{"$f":"SUM(RawData!D112:M112)","v":0},{"$f":"SUM(RawData!N112:N112)","v":0},{"$f":"RawData!O112+SUM(RawData!T112:X112)","v":0},{"$f":"SUM(RawData!P112:S112)","v":0},{"$f":"SUM(RawData!Y112:AB112)","v":0},{"$f":"RawData!AC112","v":0},{"$f":"RawData!AE112+SUM(RawData!AJ112:AL112)","v":0},{"$f":"SUM(RawData!AF112:AG112)","v":1},{"$f":"SUM(RawData!AH112:AI112)","v":0},{"$f":"RawData!AM112","v":1},{"$f":"RawData!AN112","v":0},{"$f":"SUM(RawData!AO112:AP112)","v":0},2,1]
[28095,"Red-faced Warbler",{"$f":"SUM(RawData!C113:C113)","v":0},{"$f":"SUM(RawData!D113:M113)","v":0},{"$f":"SUM(RawData!N113:N113)","v":0},{"$f":"RawData!O113+SUM(RawData!T113:X113)","v":0},{"$f":"SUM(RawData!P113:S113)","v":0},{"$f":"SUM(RawData!Y113:AB113)","v":2},{"$f":"RawData!AC113","v":2},{"$f":"RawData!AE113+SUM(RawData!AJ113:AL113)","v":0},{"$f":"SUM(RawData!AF113:AG113)","v":0},{"$f":"SUM(RawData!AH113:AI113)","v":0},{"$f":"RawData!AM113","v":0},{"$f":"RawData!AN113","v":0},{"$f":"SUM(RawData!AO113:AP113)","v":0},2,1]
[28101,"Painted Redstart",{"$f":"SUM(RawData!C114:C114)","v":0},{"$f":"SUM(RawData!D114:M114)","v":0},{"$f":"SUM(RawData!N114:N114)","v":0},{"$f":"RawData!O114+SUM(RawData!T114:X114)","v":0},{"$f":"SUM(RawData!P114:S114)","v":0},{"$f":"SUM(RawData!Y114:AB114)","v":0},{"$f":"RawData!AC114","v":0},{"$f":"RawData!AE114+SUM(RawData!AJ114:AL114)","v":0},{"$f":"SUM(RawData!AF114:AG114)","v":1},{"$f":"SUM(RawData!AH114:AI114)","v":0},{"$f":"RawData!AM114","v":1},{"$f":"RawData!AN114","v":0},{"$f":"SUM(RawData!AO114:AP114)","v":0},2,1]
[29377.200000000001,"Rufous-winged Sparrow",{"$f":"SUM(RawData!C115:C115)","v":0},{"$f":"SUM(RawData!D115:M115)","v":0},{"$f":"SUM(RawData!N115:N115)","v":0},{"$f":"RawData!O115+SUM(RawData!T115:X115)","v":2},{"$f":"SUM(RawData!P115:S115)","v":0},{"$f":"SUM(RawData!Y115:AB115)","v":0},{"$f":"RawData!AC115","v":0},{"$f":"RawData!AE115+SUM(RawData!AJ115:AL115)","v":0},{"$f":"SUM(RawData!AF115:AG115)","v":0},{"$f":"SUM(RawData!AH115:AI115)","v":0},{"$f":"RawData!AM115","v":0},{"$f":"RawData!AN115","v":0},{"$f":"SUM(RawData!AO115:AP115)","v":0},1,1]
[29743,"Black-throated Sparrow",{"$f":"SUM(RawData!C116:C116)","v":0},{"$f":"SUM(RawData!D116:M116)","v":0},{"$f":"SUM(RawData!N116:N116)","v":0},{"$f":"RawData!O116+SUM(RawData!T116:X116)","v":0},{"$f":"SUM(RawData!P116:S116)","v":0},{"$f":"SUM(RawData!Y116:AB116)","v":0},{"$f":"RawData!AC116","v":0},{"$f":"RawData!AE116+SUM(RawData!AJ116:AL116)","v":0},{"$f":"SUM(RawData!AF116:AG116)","v":0},{"$f":"SUM(RawData!AH116:AI116)","v":0},{"$f":"RawData!AM116","v":0},{"$f":"RawData!AN116","v":0},{"$f":"SUM(RawData!AO116:AP116)","v":3},1,1]
[29978,"Yellow-eyed Junco",{"$f":"SUM(RawData!C117:C117)","v":0},{"$f":"SUM(RawData!D117:M117)","v":0},{"$f":"SUM(RawData!N117:N117)","v":0},{"$f":"RawData!O117+SUM(RawData!T117:X117)","v":0},{"$f":"SUM(RawData!P117:S117)","v":0},{"$f":"SUM(RawData!Y117:AB117)","v":0},{"$f":"RawData!AC117","v":0},{"$f":"RawData!AE117+SUM(RawData!AJ117:AL117)","v":9},{"$f":"SUM(RawData!AF117:AG117)","v":0},{"$f":"SUM(RawData!AH117:AI117)","v":0},{"$f":"RawData!AM117","v":0},{"$f":"RawData!AN117","v":0},{"$f":"SUM(RawData!AO117:AP117)","v":0},1,1]
[29984.39,"Song Sparrow",{"$f":"SUM(RawData!C118:C118)","v":0},{"$f":"SUM(RawData!D118:M118)","v":0},{"$f":"SUM(RawData!N118:N118)","v":0},{"$f":"RawData!O118+SUM(RawData!T118:X118)","v":3},{"$f":"SUM(RawData!P118:S118)","v":5},{"$f":"SUM(RawData!Y118:AB118)","v":0},{"$f":"RawData!AC118","v":0},{"$f":"RawData!AE118+SUM(RawData!AJ118:AL118)","v":0},{"$f":"SUM(RawData!AF118:AG118)","v":0},{"$f":"SUM(RawData!AH118:AI118)","v":0},{"$f":"RawData!AM118","v":0},{"$f":"RawData!AN118","v":0},{"$f":"SUM(RawData!AO118:AP118)","v":0},2,1]
[29984.560000000001,"Canyon Towhee",{"$f":"SUM(RawData!C119:C119)","v":0},{"$f":"SUM(RawData!D119:M119)","v":1},{"$f":"SUM(RawData!N119:N119)","v":0},{"$f":"RawData!O119+SUM(RawData!T119:X119)","v":0},{"$f":"SUM(RawData!P119:S119)","v":0},{"$f":"SUM(RawData!Y119:AB119)","v":0},{"$f":"RawData!AC119","v":0},{"$f":"RawData!AE119+SUM(RawData!AJ119:AL119)","v":0},{"$f":"SUM(RawData!AF119:AG119)","v":0},{"$f":"SUM(RawData!AH119:AI119)","v":0},{"$f":"RawData!AM119","v":0},{"$f":"RawData!AN119","v":0},{"$f":"SUM(RawData!AO119:AP119)","v":0},1,1]
[29984.58,"Abert's Towhee",{"$f":"SUM(RawData!C120:C120)","v":0},{"$f":"SUM(RawData!D120:M120)","v":0},{"$f":"SUM(RawData!N120:N120)","v":0},{"$f":"RawData!O120+SUM(RawData!T120:X120)","v":0},{"$f":"SUM(RawData!P120:S120)","v":5},{"$f":"SUM(RawData!Y120:AB120)","v":0},{"$f":"RawData!AC120","v":0},{"$f":"RawData!AE120+SUM(RawData!AJ120:AL120)","v":0},{"$f":"SUM(RawData!AF120:AG120)","v":0},{"$f":"SUM(RawData!AH120:AI120)","v":0},{"$f":"RawData!AM120","v":0},{"$f":"RawData!AN120","v":0},{"$f":"SUM(RawData!AO120:AP120)","v":0},1,1]
[29984.59,"Canyon/Abert's Towhee",{"$f":"SUM(RawData!C121:C121)","v":0},{"$f":"SUM(RawData!D121:M121)","v":0},{"$f":"SUM(RawData!N121:N121)","v":0},{"$f":"RawData!O121+SUM(RawData!T121:X121)","v":0},{"$f":"SUM(RawData!P121:S121)","v":0},{"$f":"SUM(RawData!Y121:AB121)","v":0},{"$f":"RawData!AC121","v":0},{"$f":"RawData!AE121+SUM(RawData!AJ121:AL121)","v":0},{"$f":"SUM(RawData!AF121:AG121)","v":0},{"$f":"SUM(RawData!AH121:AI121)","v":1},{"$f":"RawData!AM121","v":0},{"$f":"RawData!AN121","v":0},{"$f":"SUM(RawData!AO121:AP121)","v":0},1,0]
[29984.69,"Spotted Towhee",{"$f":"SUM(RawData!C122:C122)","v":0},{"$f":"SUM(RawData!D122:M122)","v":0},{"$f":"SUM(RawData!N122:N122)","v":0},{"$f":"RawData!O122+SUM(RawData!T122:X122)","v":0},{"$f":"SUM(RawData!P122:S122)","v":0},{"$f":"SUM(RawData!Y122:AB122)","v":6},{"$f":"RawData!AC122","v":0},{"$f":"RawData!AE122+SUM(RawData!AJ122:AL122)","v":0},{"$f":"SUM(RawData!AF122:AG122)","v":0},{"$f":"SUM(RawData!AH122:AI122)","v":0},{"$f":"RawData!AM122","v":1},{"$f":"RawData!AN122","v":0},{"$f":"SUM(RawData!AO122:AP122)","v":0},2,1]
[30130.6,"Yellow-breasted Chat",{"$f":"SUM(RawData!C123:C123)","v":0},{"$f":"SUM(RawData!D123:M123)","v":0},{"$f":"SUM(RawData!N123:N123)","v":0},{"$f":"RawData!O123+SUM(RawData!T123:X123)","v":10},{"$f":"SUM(RawData!P123:S123)","v":10},{"$f":"SUM(RawData!Y123:AB123)","v":0},{"$f":"RawData!AC123","v":0},{"$f":"RawData!AE123+SUM(RawData!AJ123:AL123)","v":0},{"$f":"SUM(RawData!AF123:AG123)","v":0},{"$f":"SUM(RawData!AH123:AI123)","v":0},{"$f":"RawData!AM123","v":0},{"$f":"RawData!AN123","v":0},{"$f":"SUM(RawData!AO123:AP123)","v":0},2,1]
[30141,"Hepatic Tanager",{"$f":"SUM(RawData!C124:C124)","v":0},{"$f":"SUM(RawData!D124:M124)","v":0},{"$f":"SUM(RawData!N124:N124)","v":0},{"$f":"RawData!O124+SUM(RawData!T124:X124)","v":0},{"$f":"SUM(RawData!P124:S124)","v":0},{"$f":"SUM(RawData!Y124:AB124)","v":0},{"$f":"RawData!AC124","v":2},{"$f":"RawData!AE124+SUM(RawData!AJ124:AL124)","v":4},{"$f":"SUM(RawData!AF124:AG124)","v":0},{"$f":"SUM(RawData!AH124:AI124)","v":0},{"$f":"RawData!AM124","v":2},{"$f":"RawData!AN124","v":0},{"$f":"SUM(RawData!AO124:AP124)","v":0},3,1]
[30160,"Summer Tanager",{"$f":"SUM(RawData!C125:C125)","v":0},{"$f":"SUM(RawData!D125:M125)","v":0},{"$f":"SUM(RawData!N125:N125)","v":2},{"$f":"RawData!O125+SUM(RawData!T125:X125)","v":4},{"$f":"SUM(RawData!P125:S125)","v":8},{"$f":"SUM(RawData!Y125:AB125)","v":0},{"$f":"RawData!AC125","v":0},{"$f":"RawData!AE125+SUM(RawData!AJ125:AL125)","v":0},{"$f":"SUM(RawData!AF125:AG125)","v":0},{"$f":"SUM(RawData!AH125:AI125)","v":1},{"$f":"RawData!AM125","v":0},{"$f":"RawData!AN125","v":0},{"$f":"SUM(RawData!AO125:AP125)","v":0},4,1]
[30164,"Western Tanager",{"$f":"SUM(RawData!C126:C126)","v":0},{"$f":"SUM(RawData!D126:M126)","v":2},{"$f":"SUM(RawData!N126:N126)","v":0},{"$f":"RawData!O126+SUM(RawData!T126:X126)","v":2},{"$f":"SUM(RawData!P126:S126)","v":0},{"$f":"SUM(RawData!Y126:AB126)","v":0},{"$f":"RawData!AC126","v":0},{"$f":"RawData!AE126+SUM(RawData!AJ126:AL126)","v":0},{"$f":"SUM(RawData!AF126:AG126)","v":0},{"$f":"SUM(RawData!AH126:AI126)","v":7},{"$f":"RawData!AM126","v":1},{"$f":"RawData!AN126","v":0},{"$f":"SUM(RawData!AO126:AP126)","v":0},4,1]
[30233,"Northern Cardinal",{"$f":"SUM(RawData!C127:C127)","v":0},{"$f":"SUM(RawData!D127:M127)","v":1},{"$f":"SUM(RawData!N127:N127)","v":0},{"$f":"RawData!O127+SUM(RawData!T127:X127)","v":2},{"$f":"SUM(RawData!P127:S127)","v":3},{"$f":"SUM(RawData!Y127:AB127)","v":0},{"$f":"RawData!AC127","v":0},{"$f":"RawData!AE127+SUM(RawData!AJ127:AL127)","v":0},{"$f":"SUM(RawData!AF127:AG127)","v":0},{"$f":"SUM(RawData!AH127:AI127)","v":1},{"$f":"RawData!AM127","v":0},{"$f":"RawData!AN127","v":0},{"$f":"SUM(RawData!AO127:AP127)","v":0},4,1]
[30253,"Pyrrhuloxia",{"$f":"SUM(RawData!C128:C128)","v":0},{"$f":"SUM(RawData!D128:M128)","v":0},{"$f":"SUM(RawData!N128:N128)","v":0},{"$f":"RawData!O128+SUM(RawData!T128:X128)","v":0},{"$f":"SUM(RawData!P128:S128)","v":0},{"$f":"SUM(RawData!Y128:AB128)","v":0},{"$f":"RawData!AC128","v":0},{"$f":"RawData!AE128+SUM(RawData!AJ128:AL128)","v":0},{"$f":"SUM(RawData!AF128:AG128)","v":0},{"$f":"SUM(RawData!AH128:AI128)","v":1},{"$f":"RawData!AM128","v":0},{"$f":"RawData!AN128","v":0},{"$f":"SUM(RawData!AO128:AP128)","v":0},1,1]
[30255,"Northern Cardinal/Pyrrhuloxia",{"$f":"SUM(RawData!C129:C129)","v":0},{"$f":"SUM(RawData!D129:M129)","v":1},{"$f":"SUM(RawData!N129:N129)","v":0},{"$f":"RawData!O129+SUM(RawData!T129:X129)","v":0},{"$f":"SUM(RawData!P129:S129)","v":0},{"$f":"SUM(RawData!Y129:AB129)","v":0},{"$f":"RawData!AC129","v":0},{"$f":"RawData!AE129+SUM(RawData!AJ129:AL129)","v":0},{"$f":"SUM(RawData!AF129:AG129)","v":0},{"$f":"SUM(RawData!AH129:AI129)","v":0},{"$f":"RawData!AM129","v":0},{"$f":"RawData!AN129","v":0},{"$f":"SUM(RawData!AO129:AP129)","v":0},1,0]
[30275,"Black-headed Grosbeak",{"$f":"SUM(RawData!C130:C130)","v":0},{"$f":"SUM(RawData!D130:M130)","v":0},{"$f":"SUM(RawData!N130:N130)","v":0},{"$f":"RawData!O130+SUM(RawData!T130:X130)","v":1},{"$f":"SUM(RawData!P130:S130)","v":2},{"$f":"SUM(RawData!Y130:AB130)","v":2},{"$f":"RawData!AC130","v":2},{"$f":"RawData!AE130+SUM(RawData!AJ130:AL130)","v":0},{"$f":"SUM(RawData!AF130:AG130)","v":1},{"$f":"SUM(RawData!AH130:AI130)","v":4},{"$f":"RawData!AM130","v":1},{"$f":"RawData!AN130","v":0},{"$f":"SUM(RawData!AO130:AP130)","v":0},7,1]
[30312,"Blue Grosbeak",{"$f":"SUM(RawData!C131:C131)","v":0},{"$f":"SUM(RawData!D131:M131)","v":0},{"$f":"SUM(RawData!N131:N131)","v":0},{"$f":"RawData!O131+SUM(RawData!T131:X131)","v":0},{"$f":"SUM(RawData!P131:S131)","v":0},{"$f":"SUM(RawData!Y131:AB131)","v":0},{"$f":"RawData!AC131","v":0},{"$f":"RawData!AE131+SUM(RawData!AJ131:AL131)","v":0},{"$f":"SUM(RawData!AF131:AG131)","v":0},{"$f":"SUM(RawData!AH131:AI131)","v":1},{"$f":"RawData!AM131","v":0},{"$f":"RawData!AN131","v":0},{"$f":"SUM(RawData!AO131:AP131)","v":1},2,1]
[30328,"Varied Bunting",{"$f":"SUM(RawData!C132:C132)","v":0},{"$f":"SUM(RawData!D132:M132)","v":0},{"$f":"SUM(RawData!N132:N132)","v":0},{"$f":"RawData!O132+SUM(RawData!T132:X132)","v":1},{"$f":"SUM(RawData!P132:S132)","v":0},{"$f":"SUM(RawData!Y132:AB132)","v":0},{"$f":"RawData!AC132","v":0},{"$f":"RawData!AE132+SUM(RawData!AJ132:AL132)","v":0},{"$f":"SUM(RawData!AF132:AG132)","v":0},{"$f":"SUM(RawData!AH132:AI132)","v":0},{"$f":"RawData!AM132","v":0},{"$f":"RawData!AN132","v":0},{"$f":"SUM(RawData!AO132:AP132)","v":0},1,1]
[30338.087,"Bullock's Oriole",{"$f":"SUM(RawData!C133:C133)","v":0},{"$f":"SUM(RawData!D133:M133)","v":0},{"$f":"SUM(RawData!N133:N133)","v":0},{"$f":"RawData!O133+SUM(RawData!T133:X133)","v":2},{"$f":"SUM(RawData!P133:S133)","v":0},{"$f":"SUM(RawData!Y133:AB133)","v":0},{"$f":"RawData!AC133","v":0},{"$f":"RawData!AE133+SUM(RawData!AJ133:AL133)","v":0},{"$f":"SUM(RawData!AF133:AG133)","v":0},{"$f":"SUM(RawData!AH133:AI133)","v":0},{"$f":"RawData!AM133","v":0},{"$f":"RawData!AN133","v":0},{"$f":"SUM(RawData!AO133:AP133)","v":0},1,1]
[30338.102999999999,"Scott's Oriole",{"$f":"SUM(RawData!C134:C134)","v":0},{"$f":"SUM(RawData!D134:M134)","v":0},{"$f":"SUM(RawData!N134:N134)","v":0},{"$f":"RawData!O134+SUM(RawData!T134:X134)","v":0},{"$f":"SUM(RawData!P134:S134)","v":0},{"$f":"SUM(RawData!Y134:AB134)","v":0},{"$f":"RawData!AC134","v":0},{"$f":"RawData!AE134+SUM(RawData!AJ134:AL134)","v":0},{"$f":"SUM(RawData!AF134:AG134)","v":1},{"$f":"SUM(RawData!AH134:AI134)","v":0},{"$f":"RawData!AM134","v":1},{"$f":"RawData!AN134","v":0},{"$f":"SUM(RawData!AO134:AP134)","v":0},2,1]
[30377,"Bronzed Cowbird",{"$f":"SUM(RawData!C135:C135)","v":0},{"$f":"SUM(RawData!D135:M135)","v":0},{"$f":"SUM(RawData!N135:N135)","v":0},{"$f":"RawData!O135+SUM(RawData!T135:X135)","v":0},{"$f":"SUM(RawData!P135:S135)","v":1},{"$f":"SUM(RawData!Y135:AB135)","v":0},{"$f":"RawData!AC135","v":0},{"$f":"RawData!AE135+SUM(RawData!AJ135:AL135)","v":0},{"$f":"SUM(RawData!AF135:AG135)","v":0},{"$f":"SUM(RawData!AH135:AI135)","v":0},{"$f":"RawData!AM135","v":0},{"$f":"RawData!AN135","v":0},{"$f":"SUM(RawData!AO135:AP135)","v":0},{"$f":"COUNTIF(B134:O134,\">0\")","v":1},1]
[30380,"Brown-headed Cowbird",{"$f":"SUM(RawData!C136:C136)","v":0},{"$f":"SUM(RawData!D136:M136)","v":0},{"$f":"SUM(RawData!N136:N136)","v":0},{"$f":"RawData!O136+SUM(RawData!T136:X136)","v":3},{"$f":"SUM(RawData!P136:S136)","v":3},{"$f":"SUM(RawData!Y136:AB136)","v":0},{"$f":"RawData!AC136","v":0},{"$f":"RawData!AE136+SUM(RawData!AJ136:AL136)","v":0},{"$f":"SUM(RawData!AF136:AG136)","v":0},{"$f":"SUM(RawData!AH136:AI136)","v":0},{"$f":"RawData!AM136","v":0},{"$f":"RawData!AN136","v":0},{"$f":"SUM(RawData!AO136:AP136)","v":0},2,1]
[30432,"Great-tailed Grackle",{"$f":"SUM(RawData!C137:C137)","v":0},{"$f":"SUM(RawData!D137:M137)","v":0},{"$f":"SUM(RawData!N137:N137)","v":0},{"$f":"RawData!O137+SUM(RawData!T137:X137)","v":15},{"$f":"SUM(RawData!P137:S137)","v":0},{"$f":"SUM(RawData!Y137:AB137)","v":0},{"$f":"RawData!AC137","v":0},{"$f":"RawData!AE137+SUM(RawData!AJ137:AL137)","v":0},{"$f":"SUM(RawData!AF137:AG137)","v":0},{"$f":"SUM(RawData!AH137:AI137)","v":0},{"$f":"RawData!AM137","v":0},{"$f":"RawData!AN137","v":0},{"$f":"SUM(RawData!AO137:AP137)","v":0},1,1]
[30866,"House Finch",{"$f":"SUM(RawData!C138:C138)","v":0},{"$f":"SUM(RawData!D138:M138)","v":1},{"$f":"SUM(RawData!N138:N138)","v":0},{"$f":"RawData!O138+SUM(RawData!T138:X138)","v":4},{"$f":"SUM(RawData!P138:S138)","v":4},{"$f":"SUM(RawData!Y138:AB138)","v":0},{"$f":"RawData!AC138","v":0},{"$f":"RawData!AE138+SUM(RawData!AJ138:AL138)","v":0},{"$f":"SUM(RawData!AF138:AG138)","v":1},{"$f":"SUM(RawData!AH138:AI138)","v":2},{"$f":"RawData!AM138","v":0},{"$f":"RawData!AN138","v":0},{"$f":"SUM(RawData!AO138:AP138)","v":0},5,1]
[31021,"Pine Siskin",{"$f":"SUM(RawData!C139:C139)","v":0},{"$f":"SUM(RawData!D139:M139)","v":0},{"$f":"SUM(RawData!N139:N139)","v":0},{"$f":"RawData!O139+SUM(RawData!T139:X139)","v":0},{"$f":"SUM(RawData!P139:S139)","v":0},{"$f":"SUM(RawData!Y139:AB139)","v":0},{"$f":"RawData!AC139","v":0},{"$f":"RawData!AE139+SUM(RawData!AJ139:AL139)","v":0},{"$f":"SUM(RawData!AF139:AG139)","v":0},{"$f":"SUM(RawData!AH139:AI139)","v":4},{"$f":"RawData!AM139","v":0},{"$f":"RawData!AN139","v":0},{"$f":"SUM(RawData!AO139:AP139)","v":0},1,1]
[31032,"Lesser Goldfinch",{"$f":"SUM(RawData!C140:C140)","v":0},{"$f":"SUM(RawData!D140:M140)","v":0},{"$f":"SUM(RawData!N140:N140)","v":0},{"$f":"RawData!O140+SUM(RawData!T140:X140)","v":0},{"$f":"SUM(RawData!P140:S140)","v":6},{"$f":"SUM(RawData!Y140:AB140)","v":0},{"$f":"RawData!AC140","v":0},{"$f":"RawData!AE140+SUM(RawData!AJ140:AL140)","v":0},{"$f":"SUM(RawData!AF140:AG140)","v":0},{"$f":"SUM(RawData!AH140:AI140)","v":0},{"$f":"RawData!AM140","v":0},{"$f":"RawData!AN140","v":0},{"$f":"SUM(RawData!AO140:AP140)","v":0},1,1]
[31345,"House Sparrow",{"$f":"SUM(RawData!C141:C141)","v":0},{"$f":"SUM(RawData!D141:M141)","v":0},{"$f":"SUM(RawData!N141:N141)","v":0},{"$f":"RawData!O141+SUM(RawData!T141:X141)","v":10},{"$f":"SUM(RawData!P141:S141)","v":4},{"$f":"SUM(RawData!Y141:AB141)","v":0},{"$f":"RawData!AC141","v":0},{"$f":"RawData!AE141+SUM(RawData!AJ141:AL141)","v":0},{"$f":"SUM(RawData!AF141:AG141)","v":0},{"$f":"SUM(RawData!AH141:AI141)","v":8},{"$f":"RawData!AM141","v":0},{"$f":"RawData!AN141","v":16},{"$f":"SUM(RawData!AO141:AP141)","v":0},4,1]
[0,"Grand Total",{"$f":"COUNTIF(C5:C140,\">0\")","v":5},{"$f":"COUNTIF(D5:D140,\">0\")","v":23},4,52,48,23,10,18,26,19,17,5,15,{"$f":"Q141-P142","v":0},{"$f":"SUM(C141:O141)","v":265}]
[null,null,null,null,null,null,null,null,null,null,null,null,null,null,null,{"$f":"SUM(P5:P140)","v":265}]
[]
[]
[null,"Chihuahuan Raven",null,null,null,1,null,null,null,null,null,null,null,null,null,null,1]
[null,"Corvus sp.",null,2]